{"text_format":"1","workbook":"xlsx","n_sheets":3,"sheets":["GİRİŞ","PUANTAJ","Sayfa1"],"not_rendered":{"charts":0,"images":0,"macros":1,"external_links":1,"defined_names":4,"comments":0,"pivot_tables":0},"unopened":[],"bounds":{"document_bytes":16777216,"sheet_cells":100000,"rows_first":2000,"rows_last":500,"rows_between":2000,"halvings":0,"cell_chars":16384,"cell_head_chars":4096},"cells_cut":0,"cells_raw":0,"read":"whole","date_system":"1900"}

{"sheet":"GİRİŞ","index":0,"n_rows":100,"n_cols":8,"rows_kept":100,"cut":false,"hidden":false,"merged":[]}
["SIRA NO","ADI SOYADI","BRANŞI/GÖREVİ","OKUL ADI","İBAN NO","T.C.KİMLİK NO","KURUM","VERGİ DİLİMİ"]
[{"$f":"IF(B2<>\"\",1,\"\")","v":1},"ALİ VELİ","FELSEFE","GENÇ ANADOLU İMAM HATİP LİSESİ "]
[{"$f":"IF(B3<>\"\",A2+1,\"\")","v":2},"ALİ VELİ","FELSEFE","GENÇ ANADOLU İMAM HATİP LİSESİ "]
[{"$f":"IF(B4<>\"\",A3+1,\"\")","v":3},"ALİ VELİ","FELSEFE","GENÇ ANADOLU İMAM HATİP LİSESİ "]
[{"$f":"IF(B5<>\"\",A4+1,\"\")","v":4},"ALİ VELİ","FELSEFE","GENÇ ANADOLU İMAM HATİP LİSESİ "]
[5,"ALİ VELİ","FELSEFE","GENÇ ANADOLU İMAM HATİP LİSESİ "]
[6,"ALİ VELİ","FELSEFE","GENÇ ANADOLU İMAM HATİP LİSESİ "]
[7,"ALİ VELİ","FELSEFE","GENÇ ANADOLU İMAM HATİP LİSESİ "]
[8,"ALİ VELİ","FELSEFE","GENÇ ANADOLU İMAM HATİP LİSESİ "]
[9,"ALİ VELİ","FELSEFE","GENÇ ANADOLU İMAM HATİP LİSESİ "]
[10,"ALİ VELİ","FELSEFE","GENÇ ANADOLU İMAM HATİP LİSESİ "]
[11,"ALİ VELİ","FELSEFE","GENÇ ANADOLU İMAM HATİP LİSESİ "]
[12,"ALİ VELİ","FELSEFE","GENÇ ANADOLU İMAM HATİP LİSESİ "]
[13,"ALİ VELİ","FELSEFE","GENÇ ANADOLU İMAM HATİP LİSESİ "]
[14,"ALİ VELİ","FELSEFE","GENÇ ANADOLU İMAM HATİP LİSESİ "]
[15,"ALİ VELİ","FELSEFE","GENÇ ANADOLU İMAM HATİP LİSESİ "]
[16,"ALİ VELİ","FELSEFE","GENÇ ANADOLU İMAM HATİP LİSESİ "]
[17,"ALİ VELİ","FELSEFE","GENÇ ANADOLU İMAM HATİP LİSESİ "]
[18,"ALİ VELİ","FELSEFE","GENÇ ANADOLU İMAM HATİP LİSESİ "]
[19,"ALİ VELİ","FELSEFE","GENÇ ANADOLU İMAM HATİP LİSESİ "]
[20,"ALİ VELİ","FELSEFE","GENÇ ANADOLU İMAM HATİP LİSESİ "]
[21,"ALİ VELİ","FELSEFE","GENÇ ANADOLU İMAM HATİP LİSESİ "]
[22,"ALİ VELİ","FELSEFE","GENÇ ANADOLU İMAM HATİP LİSESİ "]
[23,"ALİ VELİ","FELSEFE","GENÇ ANADOLU İMAM HATİP LİSESİ "]
[24,"ALİ VELİ","FELSEFE","GENÇ ANADOLU İMAM HATİP LİSESİ "]
[25,"ALİ VELİ","FELSEFE","GENÇ ANADOLU İMAM HATİP LİSESİ "]
[26,"ALİ VELİ","FELSEFE","GENÇ ANADOLU İMAM HATİP LİSESİ "]
[27,"ALİ VELİ","FELSEFE","GENÇ ANADOLU İMAM HATİP LİSESİ "]
[28,"ALİ VELİ","FELSEFE","GENÇ ANADOLU İMAM HATİP LİSESİ "]
[29,"ALİ VELİ","FELSEFE","GENÇ ANADOLU İMAM HATİP LİSESİ "]
[30,"ALİ VELİ","FELSEFE","GENÇ ANADOLU İMAM HATİP LİSESİ "]
[31,"ALİ VELİ","FELSEFE","GENÇ ANADOLU İMAM HATİP LİSESİ "]
[32,"ALİ VELİ","FELSEFE","GENÇ ANADOLU İMAM HATİP LİSESİ "]
[33,"ALİ VELİ","FELSEFE","GENÇ ANADOLU İMAM HATİP LİSESİ "]
[34,"ALİ VELİ","FELSEFE","GENÇ ANADOLU İMAM HATİP LİSESİ "]
[35,"ALİ VELİ","FELSEFE","GENÇ ANADOLU İMAM HATİP LİSESİ "]
[36,"ALİ VELİ","FELSEFE","GENÇ ANADOLU İMAM HATİP LİSESİ "]
[37,"ALİ VELİ","FELSEFE","GENÇ ANADOLU İMAM HATİP LİSESİ "]
[38,"ALİ VELİ","FELSEFE","GENÇ ANADOLU İMAM HATİP LİSESİ "]
[39,"ALİ VELİ","FELSEFE","GENÇ ANADOLU İMAM HATİP LİSESİ "]
[40,"ALİ VELİ","FELSEFE","GENÇ ANADOLU İMAM HATİP LİSESİ "]
[41,"ALİ VELİ","FELSEFE","GENÇ ANADOLU İMAM HATİP LİSESİ "]
[42,"ALİ VELİ","FELSEFE","GENÇ ANADOLU İMAM HATİP LİSESİ "]
[43,"ALİ VELİ","FELSEFE","GENÇ ANADOLU İMAM HATİP LİSESİ "]
[44,"ALİ VELİ","FELSEFE","GENÇ ANADOLU İMAM HATİP LİSESİ "]
[45,"ALİ VELİ","FELSEFE","GENÇ ANADOLU İMAM HATİP LİSESİ "]
[46,"ALİ VELİ","FELSEFE","GENÇ ANADOLU İMAM HATİP LİSESİ "]
[47,"ALİ VELİ","FELSEFE","GENÇ ANADOLU İMAM HATİP LİSESİ "]
[48,"ALİ VELİ","FELSEFE","GENÇ ANADOLU İMAM HATİP LİSESİ "]
[49,"ALİ VELİ","FELSEFE","GENÇ ANADOLU İMAM HATİP LİSESİ "]
[50,"ALİ VELİ","FELSEFE","GENÇ ANADOLU İMAM HATİP LİSESİ "]
[""]
[""]
[""]
[""]
[""]
[""]
[""]
[""]
[""]
[""]
[""]
[""]
[""]
[""]
[""]
[""]
[{"$f":"IF(B68<>\"\",A67+1,\"\")","v":""}]
[""]
[""]
[""]
[""]
[""]
[""]
[""]
[""]
[""]
[""]
[""]
[""]
[""]
[""]
[""]
[""]
[""]
[""]
[""]
[""]
[""]
[""]
[""]
[""]
[""]
[""]
[""]
[""]
[""]
[""]
[""]
[""]

{"sheet":"PUANTAJ","index":1,"n_rows":269,"n_cols":109,"rows_kept":269,"cut":false,"hidden":false,"merged":[[166,50,170,50],[171,50,175,50],[176,50,180,50],[181,50,185,50],[186,50,190,50],[141,50,145,50],[146,50,150,50],[151,50,155,50],[156,50,160,50],[161,50,165,50],[241,50,245,50],[246,50,250,50],[251,50,255,50],[216,50,220,50],[221,50,225,50],[226,50,230,50],[231,50,235,50],[236,50,240,50],[191,50,195,50],[196,50,200,50],[201,50,205,50],[206,50,210,50],[211,50,215,50],[116,50,120,50],[121,50,125,50],[126,50,130,50],[131,50,135,50],[136,50,140,50],[91,50,95,50],[96,50,100,50],[101,50,105,50],[106,50,110,50],[111,50,115,50],[66,50,70,50],[71,50,75,50],[76,50,80,50],[81,50,85,50],[86,50,90,50],[251,1,255,1],[251,2,255,2],[251,3,255,3],[251,4,255,4],[226,2,230,2],[226,3,230,3],[226,4,230,4],[211,1,215,1],[211,2,215,2],[211,3,215,3],[211,4,215,4],[216,1,220,1],[216,2,220,2],[216,3,220,3],[216,4,220,4],[201,1,205,1],[201,2,205,2],[201,3,205,3],[201,4,205,4],[6,50,10,50],[11,50,15,50],[16,50,20,50],[21,50,25,50],[26,50,30,50],[31,50,35,50],[36,50,40,50],[41,50,45,50],[46,50,50,50],[51,50,55,50],[56,50,60,50],[61,50,65,50],[241,1,245,1],[241,2,245,2],[241,3,245,3],[241,4,245,4],[246,1,250,1],[246,2,250,2],[246,3,250,3],[246,4,250,4],[231,1,235,1],[231,2,235,2],[231,3,235,3],[231,4,235,4],[236,1,240,1],[236,2,240,2],[236,3,240,3],[236,4,240,4],[221,1,225,1],[221,2,225,2],[221,3,225,3],[221,4,225,4],[226,1,230,1],[206,1,210,1],[206,2,210,2],[206,3,210,3],[206,4,210,4],[191,1,195,1],[191,2,195,2],[191,3,195,3],[191,4,195,4],[196,1,200,1],[196,2,200,2],[196,3,200,3],[196,4,200,4],[181,1,185,1],[181,2,185,2],[181,3,185,3],[181,4,185,4],[186,1,190,1],[186,2,190,2],[186,3,190,3],[186,4,190,4],[171,1,175,1],[171,2,175,2],[171,3,175,3],[171,4,175,4],[176,1,180,1],[176,2,180,2],[176,3,180,3],[176,4,180,4],[161,1,165,1],[161,2,165,2],[161,3,165,3],[161,4,165,4],[166,1,170,1],[166,2,170,2],[166,3,170,3],[166,4,170,4],[146,1,150,1],[146,2,150,2],[146,3,150,3],[146,4,150,4],[151,1,155,1],[151,2,155,2],[151,3,155,3],[151,4,155,4],[156,1,160,1],[156,2,160,2],[156,3,160,3],[156,4,160,4],[136,1,140,1],[136,2,140,2],[136,3,140,3],[136,4,140,4],[141,1,145,1],[141,2,145,2],[141,3,145,3],[141,4,145,4],[126,1,130,1],[126,2,130,2],[126,3,130,3],[126,4,130,4],[131,1,135,1],[131,2,135,2],[131,3,135,3],[131,4,135,4],[116,1,120,1],[116,2,120,2],[116,3,120,3],[116,4,120,4],[121,1,125,1],[121,2,125,2],[121,3,125,3],[121,4,125,4],[106,1,110,1],[106,2,110,2],[106,3,110,3],[106,4,110,4],[111,1,115,1],[111,2,115,2],[111,3,115,3],[111,4,115,4],[96,1,100,1],[96,2,100,2],[96,3,100,3],[96,4,100,4],[101,1,105,1],[101,2,105,2],[101,3,105,3],[101,4,105,4],[86,1,90,1],[86,2,90,2],[86,3,90,3],[86,4,90,4],[91,1,95,1],[91,2,95,2],[91,3,95,3],[91,4,95,4],[76,1,80,1],[76,2,80,2],[76,3,80,3],[76,4,80,4],[81,1,85,1],[81,2,85,2],[81,3,85,3],[81,4,85,4],[66,1,70,1],[66,2,70,2],[66,3,70,3],[66,4,70,4],[71,1,75,1],[71,2,75,2],[71,3,75,3],[71,4,75,4],[56,1,60,1],[56,2,60,2],[56,3,60,3],[56,4,60,4],[61,1,65,1],[61,2,65,2],[61,3,65,3],[61,4,65,4],[46,1,50,1],[46,2,50,2],[46,3,50,3],[46,4,50,4],[51,1,55,1],[51,2,55,2],[51,3,55,3],[51,4,55,4],[36,3,40,3],[36,4,40,4],[41,1,45,1],[41,2,45,2],[41,3,45,3],[41,4,45,4],[26,1,30,1],[26,2,30,2],[26,3,30,3],[26,4,30,4],[31,1,35,1],[31,2,35,2],[31,3,35,3],[31,4,35,4],[36,1,40,1],[36,2,40,2],[1,1,1,50],[1,0,268,0],[1,51,4,51],[4,8,4,16],[5,107,5,108],[267,35,267,49],[265,1,265,4],[265,17,265,23],[264,35,264,49],[266,1,266,4],[266,17,266,23],[266,35,266,49],[264,1,264,4],[264,17,264,23],[263,35,263,49],[257,1,257,50],[4,1,4,4],[4,49,5,49],[4,50,5,50],[6,1,10,1],[6,2,10,2],[16,2,20,2],[16,3,20,3],[16,4,20,4],[0,1,0,21],[0,37,0,50],[259,3,259,49],[260,3,260,49],[261,3,261,49],[262,3,262,49],[2,1,2,3],[2,4,2,23],[2,24,2,30],[2,31,2,39],[3,1,3,23],[2,40,2,44],[2,45,2,50],[21,1,25,1],[21,2,25,2],[21,3,25,3],[21,4,25,4],[6,3,10,3],[6,4,10,4],[11,1,15,1],[11,2,15,2],[11,3,15,3],[11,4,15,4],[16,1,20,1]]}
[null,"Formüllü ve korumalı hücrelere veri girişi yapmayınız. Çizelgede değişiklik yapmayınız.",null,null,null,null,null,null,null,null,null,null,null,null,null,null,null,null,null,null,null,null,null,null,null,null,null,null,null,null,null,null,null,null,null,null,null,"GENÇ İLÇE MİLLİ EĞİTİM MÜDÜRLÜĞÜ",null,null,null,null,null,null,null,null,null,null,null,null,null,null,null,null,null,null,null,null,null,null,null,null,"Harun"]
[null,"Ü  C  R  E  T  L  İ      Ö  Ğ  R  E T  M  E  N       E    K        D    E    R    S        Ç    İ    Z    E    L    G    E    S    İ",null,null,null,null,null,null,null,null,null,null,null,null,null,null,null,null,null,null,null,null,null,null,null,null,null,null,null,null,null,null,null,null,null,null,null,null,null,null,null,null,null,null,null,null,null,null,null,null,null,null,null,null,null,null,null,null,null,null,null,null,"Harun"]
[null,"K U R U M U     ",null,null,"GENÇ AİHL",null,null,null,null,null,null,null,null,null,null,null,null,null,null,null,null,null,null,null,"AİT OLDUĞU AY",null,null,null,null,null,null,"OCAK",null,null,null,null,null,null,null,null,"BÜTÇE YILI",null,null,null,null,{"$f":"+DD6","v":2022},null,null,null,null,null,null,null,null,null,null,null,null,null,null,null,null,"Harun"]
[null,null,null,null,null,null,null,null,null,null,null,null,null,null,null,null,null,null,null,null,null,null,null,null,null,null,null,null,null,null,null,null,null,null,null,null,null,null,null,null,null,null,null,null,null,null,null,null,null,null,null,null,null,null,null,null,null,null,null,null,null,null,"Harun"]
[null,"Ö  Ğ R E  T  M  E  N  İ  N ",null,null,null,null,null,null,null,null,null,null,null,null,null,null,null,{"$f":"VLOOKUP(AF3,DC:DD,2,0)","v":"2022-01-01"},{"$f":"IF(R5<VLOOKUP($AF$3,$DC:$DE,3,0),R5+1,\"\")","v":"2022-01-02"},{"$f":"IF(S5<VLOOKUP($AF$3,$DC:$DE,3,0),S5+1,\"\")","v":"2022-01-03"},"2022-01-04","2022-01-05","2022-01-06","2022-01-07","2022-01-08","2022-01-09","2022-01-10","2022-01-11","2022-01-12","2022-01-13","2022-01-14","","","","","","","","","","","","","","","","","",{"$f":"IF(AV5<VLOOKUP(BJ3,$DC:$DE,3,0),AV5+1,\"\")","v":{"$error":"#N/A"}},"EK DERS TOPLAMI","G.TOPLAM",null,null,null,null,null,null,null,null,null,null,null,"Harun",null,null,null,null,null,null,null,null,null,null,null,null,null,null,null,null,null,null,null,null,null,null,null,null,null,null,null,null,null,null,null,null,null,null,null,null,null,null,null,null,null,null,null,"YADA(F$5=\"Cumartesi\";F$5=\"Pazar\")"]
[null,"SIRA","ADI VE SOYADI","BRANŞI/GÖREVİ","OKULU",null,null,null,"EK DERS TÜRÜ","Pazartesi","Salı","Çarşamba","Perşembe","Cuma","Cumartesi","Pazar","Toplam",{"$f":"TEXT(R5,\"gggg\")","v":"Cumartesi"},{"$f":"TEXT(S5,\"gggg\")","v":"Pazar"},"Pazartesi","Salı","Çarşamba","Perşembe","Cuma","Cumartesi","Pazar","Pazartesi","Salı","Çarşamba","Perşembe","Cuma","","","","","","","","","","","","","","","","","",null,null,null,null,null,null,null,null,null,null,null,null,null,null,"Harun",null,null,null,null,null,null,null,null,null,null,null,null,null,null,null,null,null,null,null,null,null,null,null,null,null,null,null,null,null,null,null,null,null,null,null,null,null,null,null,null,null,null,null,"YIL",2022]
[null,{"$f":"+GİRİŞ!A2","v":1},{"$f":"+GİRİŞ!B2","v":"ALİ VELİ"},{"$f":"+GİRİŞ!C2","v":"FELSEFE"},"İnönü Ortaokulu",null,null,101,"Gündüz Ekders",3,2,3,2,3,null,null,{"$f":"SUM(J7:P7)","v":13},null,null,null,null,null,null,null,null,null,null,null,null,null,null,null,null,null,null,null,null,null,null,null,null,null,null,null,null,null,null,null,null,{"$f":"SUM(R7:AV7)","v":0},{"$f":"SUM(AX7:AX11)","v":0},null,null,null,null,null,null,null,null,null,null,null,{"$f":"IF(AX7>0,\"Harun\",\"\")","v":""},null,"Gündüz Ekders",null,null,null,null,null,null,null,null,null,null,null,null,{"$f":"COUNTIF(R7:AV7,\"1\")","v":0},{"$f":"COUNTIF(R7:AV7,\"x\")","v":0},null,null,null,null,null,null,null,null,null,null,null,null,null,null,null,null,null,null,null,null,null,null,null,null,null,null,null,"OCAK","2022-01-01","2022-01-14"]
[null,null,null,null,null,null,null,101,"Nöbet",1,1,null,null,null,null,null,{"$f":"SUM(J8:P8)","v":2},null,null,null,null,null,null,null,null,null,null,null,null,null,null,null,null,null,null,null,null,null,null,null,null,null,null,null,null,null,null,null,null,{"$f":"SUM(R8:AV8)","v":0},null,null,null,null,null,null,null,null,null,null,null,null,{"$f":"IF(AX8>0,\"Harun\",\"\")","v":""},null,"Nöbet",null,null,null,null,null,null,null,null,null,null,null,null,0,0,null,null,null,null,null,null,null,null,null,null,null,null,null,null,null,null,null,null,null,null,null,null,null,null,null,null,null,"OCAK-ŞUBAT","2022-01-15","2022-02-14"]
[null,null,null,null,null,null,null,101,"Sınav Görevi",null,null,null,null,null,null,null,0,null,null,null,null,null,null,null,null,null,null,null,null,null,null,null,null,null,null,null,null,null,null,null,null,null,null,null,null,null,null,null,null,0,null,null,null,null,null,null,null,null,null,null,null,null,"",null,"Belleticilik",null,null,null,null,null,null,null,null,null,null,null,null,0,0,null,null,null,null,null,null,null,null,null,null,null,null,null,null,null,null,null,null,null,null,null,null,null,null,null,null,null,"ŞUBAT-MART",{"$f":"EDATE(DD8,1)","v":"2022-02-15"},"2022-03-14"]
[null,null,null,null,null,null,null,101,"Belleticilik",null,null,null,null,null,null,null,0,null,null,null,null,null,null,null,null,null,null,null,null,null,null,null,null,null,null,null,null,null,null,null,null,null,null,null,null,null,null,null,null,0,null,null,null,null,null,null,null,null,null,null,null,null,"",null,"Egzersiz",null,null,null,null,null,null,null,null,null,null,null,null,0,0,null,null,null,null,null,null,null,null,null,null,null,null,null,null,null,null,null,null,null,null,null,null,null,null,null,null,null,"MART-NİSAN","2022-03-15",{"$f":"EDATE(DE9,1)","v":"2022-04-14"}]
[null,null,null,null,null,null,null,101,"Sınav Görevi",null,null,null,null,null,null,null,0,null,null,null,null,null,null,null,null,null,null,null,null,null,null,null,null,null,null,null,null,null,null,null,null,null,null,null,null,null,null,null,null,0,null,null,null,null,null,null,null,null,null,null,null,null,"",null,"İyep",null,null,null,null,null,null,null,null,null,null,null,null,0,0,null,null,null,null,null,null,null,null,null,null,null,null,null,null,null,null,null,null,null,null,null,null,null,null,null,null,null,"NİSAN-MAYIS","2022-04-15",{"$f":"EDATE(DE10,1)","v":"2022-05-14"}]
[null,{"$f":"+GİRİŞ!A3","v":2},{"$f":"+GİRİŞ!B3","v":"ALİ VELİ"},{"$f":"+GİRİŞ!C3","v":"FELSEFE"},"İnönü Ortaokulu",null,null,101,"Gündüz Ekders",3,2,2,2,2,null,null,11,null,null,null,null,null,null,null,null,null,null,null,null,null,null,null,null,null,null,null,null,null,null,null,null,null,null,null,null,null,null,null,null,0,{"$f":"SUM(AX12:AX16)","v":0},null,null,null,null,null,null,null,null,null,null,null,"",null,"İkili Öğretim",null,null,null,null,null,null,null,null,null,null,null,null,0,0,null,null,null,null,null,null,null,null,null,null,null,null,null,null,null,null,null,null,null,null,null,null,null,null,null,null,null,"MAYIS-HAZİRAN",{"$f":"EDATE(DD11,1)","v":"2022-05-15"},{"$f":"EDATE(DE11,1)","v":"2022-06-14"}]
[null,null,null,null,null,null,null,101,"Nöbet",null,null,null,null,null,null,null,0,null,null,null,null,null,null,null,null,null,null,null,null,null,null,null,null,null,null,null,null,null,null,null,null,null,null,null,null,null,null,null,null,0,null,null,null,null,null,null,null,null,null,null,null,null,"",null,"Hizmetiçi Eğitim",null,null,null,null,null,null,null,null,null,null,null,null,0,0,null,null,null,null,null,null,null,null,null,null,null,null,null,null,null,null,null,null,null,null,null,null,null,null,null,null,null,"HAZİRAN-TEMMUZ",{"$f":"EDATE(DD12,1)","v":"2022-06-15"},{"$f":"EDATE(DE12,1)","v":"2022-07-14"}]
[null,null,null,null,null,null,null,101,"Sınav Görevi",null,null,null,null,null,null,null,0,null,null,null,null,null,null,null,null,null,null,null,null,null,null,null,null,null,null,null,null,null,null,null,null,null,null,null,null,null,null,null,null,0,null,null,null,null,null,null,null,null,null,null,null,null,"",null,"Yüz Yüze Eğitim",null,null,null,null,null,null,null,null,null,null,null,null,0,0,null,null,null,null,null,null,null,null,null,null,null,null,null,null,null,null,null,null,null,null,null,null,null,null,null,null,null,"TEMMUZ-AĞUSTOS","2022-07-15",{"$f":"EDATE(DE13,1)","v":"2022-08-14"}]
[null,null,null,null,null,null,null,101,null,null,null,null,null,null,null,null,0,null,null,null,null,null,null,null,null,null,null,null,null,null,null,null,null,null,null,null,null,null,null,null,null,null,null,null,null,null,null,null,null,0,null,null,null,null,null,null,null,null,null,null,null,null,"",null,"Sınav Görevi",null,null,null,null,null,null,null,null,null,null,null,null,0,0,null,null,null,null,null,null,null,null,null,null,null,null,null,null,null,null,null,null,null,null,null,null,null,null,null,null,null,"AĞUSTOS-EYLÜL","2022-08-15",{"$f":"EDATE(DE14,1)","v":"2022-09-14"}]
[null,null,null,null,null,null,null,101,null,null,null,null,null,null,null,null,0,null,null,null,null,null,null,null,null,null,null,null,null,null,null,null,null,null,null,null,null,null,null,null,null,null,null,null,null,null,null,null,null,0,null,null,null,null,null,null,null,null,null,null,null,null,"",null,"Gece Ekders",null,null,null,null,null,null,null,null,null,null,null,null,0,0,null,null,null,null,null,null,null,null,null,null,null,null,null,null,null,null,null,null,null,null,null,null,null,null,null,null,null,"EYLÜL-EKİM","2022-09-15",{"$f":"EDATE(DE15,1)","v":"2022-10-14"}]
[null,{"$f":"+GİRİŞ!A4","v":3},{"$f":"+GİRİŞ!B4","v":"ALİ VELİ"},{"$f":"+GİRİŞ!C4","v":"FELSEFE"},"İnönü Ortaokulu",null,null,101,"Gündüz Ekders",3,3,3,3,3,null,null,15,null,null,null,null,null,null,null,null,null,null,null,null,null,null,null,null,null,null,null,null,null,null,null,null,null,null,null,null,null,null,null,null,0,{"$f":"SUM(AX17:AX21)","v":0},null,null,null,null,null,null,null,null,null,null,null,"",null,"DYK Gündüz",null,null,null,null,null,null,null,null,null,null,null,null,0,0,null,null,null,null,null,null,null,null,null,null,null,null,null,null,null,null,null,null,null,null,null,null,null,null,null,null,null,"EKİM-KASIM","2022-10-15",{"$f":"EDATE(DE16,1)","v":"2022-11-14"}]
[null,null,null,null,null,null,null,101,"Nöbet",null,null,null,null,null,null,null,0,null,null,null,null,null,null,null,null,null,null,null,null,null,null,null,null,null,null,null,null,null,null,null,null,null,null,null,null,null,null,null,null,0,null,null,null,null,null,null,null,null,null,null,null,null,"",null,"DYK Gece",null,null,null,null,null,null,null,null,null,null,null,null,0,0,null,null,null,null,null,null,null,null,null,null,null,null,null,null,null,null,null,null,null,null,null,null,null,null,null,null,null,"KASIM-ARALIK","2022-11-15",{"$f":"EDATE(DE17,1)","v":"2022-12-14"}]
[null,null,null,null,null,null,null,101,"Sınav Görevi",null,null,null,null,null,null,null,0,null,null,null,null,null,null,null,null,null,null,null,null,null,null,null,null,null,null,null,null,null,null,null,null,null,null,null,null,null,null,null,null,0,null,null,null,null,null,null,null,null,null,null,null,null,"",null,"Özel Eğitim",null,null,null,null,null,null,null,null,null,null,null,null,0,0,null,null,null,null,null,null,null,null,null,null,null,null,null,null,null,null,null,null,null,null,null,null,null,null,null,null,null,"ARALIK","2022-12-15","2022-12-31"]
[null,null,null,null,null,null,null,101,null,null,null,null,null,null,null,null,0,null,null,null,null,null,null,null,null,null,null,null,null,null,null,null,null,null,null,null,null,null,null,null,null,null,null,null,null,null,null,null,null,0,null,null,null,null,null,null,null,null,null,null,null,null,"",null,"Özel Eğt. Nöbet",null,null,null,null,null,null,null,null,null,null,null,null,0,0]
[null,null,null,null,null,null,null,101,null,null,null,null,null,null,null,null,0,null,null,null,null,null,null,null,null,null,null,null,null,null,null,null,null,null,null,null,null,null,null,null,null,null,null,null,null,null,null,null,null,0,null,null,null,null,null,null,null,null,null,null,null,null,"",null,"Destek/Evde Eğitim",null,null,null,null,null,null,null,null,null,null,null,null,0,0]
[null,{"$f":"+GİRİŞ!A5","v":4},{"$f":"+GİRİŞ!B5","v":"ALİ VELİ"},{"$f":"+GİRİŞ!C5","v":"FELSEFE"},"İnönü Ortaokulu",null,null,101,"Gündüz Ekders",4,4,4,4,4,null,null,20,null,null,null,null,null,null,null,null,null,null,null,null,null,null,null,null,null,null,null,null,null,null,null,null,null,null,null,null,null,null,null,null,0,{"$f":"SUM(AX22:AX26)","v":0},null,null,null,null,null,null,null,null,null,null,null,"",null,null,null,null,null,null,null,null,null,null,null,null,null,null,0,0]
[null,null,null,null,null,null,null,101,"Yüz Yüze Eğitim",null,null,null,null,null,null,null,0,null,null,null,null,null,null,null,null,null,null,null,null,null,null,null,null,null,null,null,null,null,null,null,null,null,null,null,null,null,null,null,null,0,null,null,null,null,null,null,null,null,null,null,null,null,"",null,null,null,null,null,null,null,null,null,null,null,null,null,null,0,0]
[null,null,null,null,null,null,null,101,"Nöbet",null,null,null,null,null,null,null,0,null,null,null,null,null,null,null,null,null,null,null,null,null,null,null,null,null,null,null,null,null,null,null,null,null,null,null,null,null,null,null,null,0,null,null,null,null,null,null,null,null,null,null,null,null,"",null,null,null,null,null,null,null,null,null,null,null,null,null,null,0,0]
[null,null,null,null,null,null,null,101,"Destek/Evde Eğitim",null,null,null,null,null,null,null,0,null,null,null,null,null,null,null,null,null,null,null,null,null,null,null,null,null,null,null,null,null,null,null,null,null,null,null,null,null,null,null,null,0,null,null,null,null,null,null,null,null,null,null,null,null,"",null,null,null,null,null,null,null,null,null,null,null,null,null,null,0,0]
[null,null,null,null,null,null,null,101,"Sınav Görevi",null,null,null,null,null,null,null,0,null,null,null,null,null,null,null,null,null,null,null,null,null,null,null,null,null,null,null,null,null,null,null,null,null,null,null,null,null,null,null,null,0,null,null,null,null,null,null,null,null,null,null,null,null,"",null,null,null,null,null,null,null,null,null,null,null,null,null,null,0,0]
[null,{"$f":"+GİRİŞ!A6","v":5},{"$f":"+GİRİŞ!B6","v":"ALİ VELİ"},{"$f":"+GİRİŞ!C6","v":"FELSEFE"},"İnönü Ortaokulu",null,null,101,"Gündüz Ekders",4,4,3,3,3,null,null,17,null,null,null,null,null,null,null,null,null,null,null,null,null,null,null,null,null,null,null,null,null,null,null,null,null,null,null,null,null,null,null,null,0,{"$f":"SUM(AX27:AX31)","v":0},null,null,null,null,null,null,null,null,null,null,null,"",null,null,null,null,null,null,null,null,null,null,null,null,null,null,0,0]
[null,null,null,null,null,null,null,101,"Nöbet",null,null,null,null,null,null,null,0,null,null,null,null,null,null,null,null,null,null,null,null,null,null,null,null,null,null,null,null,null,null,null,null,null,null,null,null,null,null,null,null,0,null,null,null,null,null,null,null,null,null,null,null,null,"",null,null,null,null,null,null,null,null,null,null,null,null,null,null,0,0]
[null,null,null,null,null,null,null,101,"DYK Gece",null,null,null,null,null,null,null,0,null,null,null,null,null,null,null,null,null,null,null,null,null,null,null,null,null,null,null,null,null,null,null,null,null,null,null,null,null,null,null,null,0,null,null,null,null,null,null,null,null,null,null,null,null,"",null,null,null,null,null,null,null,null,null,null,null,null,null,null,0,0]
[null,null,null,null,null,null,null,101,"Sınav Görevi",null,null,null,null,null,null,null,0,null,null,null,null,null,null,null,null,null,null,null,null,null,null,null,null,null,null,null,null,null,null,null,null,null,null,null,null,null,null,null,null,0,null,null,null,null,null,null,null,null,null,null,null,null,"",null,null,null,null,null,null,null,null,null,null,null,null,null,null,0,0]
[null,null,null,null,null,null,null,101,null,null,null,null,null,null,null,null,0,null,null,null,null,null,null,null,null,null,null,null,null,null,null,null,null,null,null,null,null,null,null,null,null,null,null,null,null,null,null,null,null,0,null,null,null,null,null,null,null,null,null,null,null,null,"",null,null,null,null,null,null,null,null,null,null,null,null,null,null,0,0]
[null,{"$f":"+GİRİŞ!A7","v":6},{"$f":"+GİRİŞ!B7","v":"ALİ VELİ"},{"$f":"+GİRİŞ!C7","v":"FELSEFE"},"İnönü Ortaokulu",null,null,101,"Gündüz Ekders",3,2,2,2,3,null,null,12,null,null,null,null,null,null,null,null,null,null,null,null,null,null,null,null,null,null,null,null,null,null,null,null,null,null,null,null,null,null,null,null,0,{"$f":"SUM(AX32:AX36)","v":0},null,null,null,null,null,null,null,null,null,null,null,"",null,null,null,null,null,null,null,null,null,null,null,null,null,null,0,0]
[null,null,null,null,null,null,null,101,"Nöbet",null,null,null,null,null,null,null,0,null,null,null,null,null,null,null,null,null,null,null,null,null,null,null,null,null,null,null,null,null,null,null,null,null,null,null,null,null,null,null,null,0,null,null,null,null,null,null,null,null,null,null,null,null,"",null,null,null,null,null,null,null,null,null,null,null,null,null,null,0,0]
[null,null,null,null,null,null,null,101,"Sınav Görevi",null,null,null,null,null,null,null,0,null,null,null,null,null,null,null,null,null,null,null,null,null,null,null,null,null,null,null,null,null,null,null,null,null,null,null,null,null,null,null,null,0,null,null,null,null,null,null,null,null,null,null,null,null,"",null,null,null,null,null,null,null,null,null,null,null,null,null,null,0,0]
[null,null,null,null,null,null,null,101,"Egzersiz",null,null,null,null,null,null,null,0,null,null,null,null,null,null,null,null,null,null,null,null,null,null,null,null,null,null,null,null,null,null,null,null,null,null,null,null,null,null,null,null,0,null,null,null,null,null,null,null,null,null,null,null,null,"",null,null,null,null,null,null,null,null,null,null,null,null,null,null,0,0]
[null,null,null,null,null,null,null,101,null,null,null,null,null,null,null,null,0,null,null,null,null,null,null,null,null,null,null,null,null,null,null,null,null,null,null,null,null,null,null,null,null,null,null,null,null,null,null,null,null,0,null,null,null,null,null,null,null,null,null,null,null,null,"",null,null,null,null,null,null,null,null,null,null,null,null,null,null,0,0]
[null,{"$f":"+GİRİŞ!A8","v":7},{"$f":"+GİRİŞ!B8","v":"ALİ VELİ"},{"$f":"+GİRİŞ!C8","v":"FELSEFE"},"İnönü Ortaokulu",null,null,101,"Gündüz Ekders",4,3,4,3,4,null,null,18,null,null,null,null,null,null,null,null,null,null,null,null,null,null,null,null,null,null,null,null,null,null,null,null,null,null,null,null,null,null,null,null,0,{"$f":"SUM(AX37:AX41)","v":0},null,null,null,null,null,null,null,null,null,null,null,"",null,null,null,null,null,null,null,null,null,null,null,null,null,null,0,0]
[null,null,null,null,null,null,null,101,"Nöbet",null,null,null,null,null,null,null,0,null,null,null,null,null,null,null,null,null,null,null,null,null,null,null,null,null,null,null,null,null,null,null,null,null,null,null,null,null,null,null,null,0,null,null,null,null,null,null,null,null,null,null,null,null,"",null,null,null,null,null,null,null,null,null,null,null,null,null,null,0,0]
[null,null,null,null,null,null,null,101,"Belleticilik",null,null,null,null,null,null,null,0,null,null,null,null,null,null,null,null,null,null,null,null,null,null,null,null,null,null,null,null,null,null,null,null,null,null,null,null,null,null,null,null,0,null,null,null,null,null,null,null,null,null,null,null,null,"",null,null,null,null,null,null,null,null,null,null,null,null,null,null,0,0]
[null,null,null,null,null,null,null,101,"DYK Gece",null,null,null,null,null,null,null,0,null,null,null,null,null,null,null,null,null,null,null,null,null,null,null,null,null,null,null,null,null,null,null,null,null,null,null,null,null,null,null,null,0,null,null,null,null,null,null,null,null,null,null,null,null,"",null,null,null,null,null,null,null,null,null,null,null,null,null,null,0,0]
[null,null,null,null,null,null,null,101,"Sınav Görevi",null,null,null,null,null,null,null,0,null,null,null,null,null,null,null,null,null,null,null,null,null,null,null,null,null,null,null,null,null,null,null,null,null,null,null,null,null,null,null,null,0,null,null,null,null,null,null,null,null,null,null,null,null,"",null,null,null,null,null,null,null,null,null,null,null,null,null,null,0,0]
[null,{"$f":"+GİRİŞ!A9","v":8},{"$f":"+GİRİŞ!B9","v":"ALİ VELİ"},{"$f":"+GİRİŞ!C9","v":"FELSEFE"},"İnönü Ortaokulu",null,null,101,"Gündüz Ekders",2,2,2,2,2,null,null,10,null,null,null,null,null,null,null,null,null,null,null,null,null,null,null,null,null,null,null,null,null,null,null,null,null,null,null,null,null,null,null,null,0,{"$f":"SUM(AX42:AX46)","v":0},null,null,null,null,null,null,null,null,null,null,null,"",null,null,null,null,null,null,null,null,null,null,null,null,null,null,0,0]
[null,null,null,null,null,null,null,101,"Nöbet",null,null,null,null,null,null,null,0,null,null,null,null,null,null,null,null,null,null,null,null,null,null,null,null,null,null,null,null,null,null,null,null,null,null,null,null,null,null,null,null,0,null,null,null,null,null,null,null,null,null,null,null,null,"",null,null,null,null,null,null,null,null,null,null,null,null,null,null,0,0]
[null,null,null,null,null,null,null,101,"Belleticilik",null,null,null,null,null,null,null,0,null,null,null,null,null,null,null,null,null,null,null,null,null,null,null,null,null,null,null,null,null,null,null,null,null,null,null,null,null,null,null,null,0,null,null,null,null,null,null,null,null,null,null,null,null,"",null,null,null,null,null,null,null,null,null,null,null,null,null,null,0,0]
[null,null,null,null,null,null,null,101,"DYK Gece",null,null,null,null,null,null,null,0,null,null,null,null,null,null,null,null,null,null,null,null,null,null,null,null,null,null,null,null,null,null,null,null,null,null,null,null,null,null,null,null,0,null,null,null,null,null,null,null,null,null,null,null,null,"",null,null,null,null,null,null,null,null,null,null,null,null,null,null,0,0]
[null,null,null,null,null,null,null,101,"DYK Gündüz",null,null,null,null,null,null,null,0,null,null,null,null,null,null,null,null,null,null,null,null,null,null,null,null,null,null,null,null,null,null,null,null,null,null,null,null,null,null,null,null,0,null,null,null,null,null,null,null,null,null,null,null,null,"",null,null,null,null,null,null,null,null,null,null,null,null,null,null,0,0]
[null,{"$f":"+GİRİŞ!A10","v":9},{"$f":"+GİRİŞ!B10","v":"ALİ VELİ"},{"$f":"+GİRİŞ!C10","v":"FELSEFE"},"İnönü Ortaokulu",null,null,101,"Gündüz Ekders",4,4,4,4,4,null,null,20,null,null,null,null,null,null,null,null,null,null,null,null,null,null,null,null,null,null,null,null,null,null,null,null,null,null,null,null,null,null,null,null,0,{"$f":"SUM(AX47:AX51)","v":0},null,null,null,null,null,null,null,null,null,null,null,"",null,null,null,null,null,null,null,null,null,null,null,null,null,null,0,0]
[null,null,null,null,null,null,null,101,"Nöbet",null,null,null,null,null,null,null,0,null,null,null,null,null,null,null,null,null,null,null,null,null,null,null,null,null,null,null,null,null,null,null,null,null,null,null,null,null,null,null,null,0,null,null,null,null,null,null,null,null,null,null,null,null,"",null,null,null,null,null,null,null,null,null,null,null,null,null,null,0,0]
[null,null,null,null,null,null,null,101,"Belleticilik",null,null,null,null,null,null,null,0,null,null,null,null,null,null,null,null,null,null,null,null,null,null,null,null,null,null,null,null,null,null,null,null,null,null,null,null,null,null,null,null,0,null,null,null,null,null,null,null,null,null,null,null,null,"",null,null,null,null,null,null,null,null,null,null,null,null,null,null,0,0]
[null,null,null,null,null,null,null,101,"Sınav Görevi",null,null,null,null,null,null,null,0,null,null,null,null,null,null,null,null,null,null,null,null,null,null,null,null,null,null,null,null,null,null,null,null,null,null,null,null,null,null,null,null,0,null,null,null,null,null,null,null,null,null,null,null,null,"",null,null,null,null,null,null,null,null,null,null,null,null,null,null,0,0]
[null,null,null,null,null,null,null,101,null,null,null,null,null,null,null,null,0,null,null,null,null,null,null,null,null,null,null,null,null,null,null,null,null,null,null,null,null,null,null,null,null,null,null,null,null,null,null,null,null,0,null,null,null,null,null,null,null,null,null,null,null,null,"",null,null,null,null,null,null,null,null,null,null,null,null,null,null,0,0]
[null,{"$f":"+GİRİŞ!A11","v":10},{"$f":"+GİRİŞ!B11","v":"ALİ VELİ"},{"$f":"+GİRİŞ!C11","v":"FELSEFE"},"İnönü Ortaokulu",null,null,101,"Gündüz Ekders",3,2,2,2,3,null,null,12,null,null,null,null,null,null,null,null,null,null,null,null,null,null,null,null,null,null,null,null,null,null,null,null,null,null,null,null,null,null,null,null,0,{"$f":"SUM(AX52:AX56)","v":0},null,null,null,null,null,null,null,null,null,null,null,"",null,null,null,null,null,null,null,null,null,null,null,null,null,null,0,0]
[null,null,null,null,null,null,null,101,"Sınav Görevi",null,null,null,null,null,null,null,0,null,null,null,null,null,null,null,null,null,null,null,null,null,null,null,null,null,null,null,null,null,null,null,null,null,null,null,null,null,null,null,null,0,null,null,null,null,null,null,null,null,null,null,null,null,""]
[null,null,null,null,null,null,null,101,null,null,null,null,null,null,null,null,0,null,null,null,null,null,null,null,null,null,null,null,null,null,null,null,null,null,null,null,null,null,null,null,null,null,null,null,null,null,null,null,null,0,null,null,null,null,null,null,null,null,null,null,null,null,""]
[null,null,null,null,null,null,null,101,null,null,null,null,null,null,null,null,0,null,null,null,null,null,null,null,null,null,null,null,null,null,null,null,null,null,null,null,null,null,null,null,null,null,null,null,null,null,null,null,null,0,null,null,null,null,null,null,null,null,null,null,null,null,""]
[null,null,null,null,null,null,null,101,null,null,null,null,null,null,null,null,0,null,null,null,null,null,null,null,null,null,null,null,null,null,null,null,null,null,null,null,null,null,null,null,null,null,null,null,null,null,null,null,null,0,null,null,null,null,null,null,null,null,null,null,null,null,""]
[null,{"$f":"+GİRİŞ!A12","v":11},{"$f":"+GİRİŞ!B12","v":"ALİ VELİ"},{"$f":"+GİRİŞ!C12","v":"FELSEFE"},"İnönü Ortaokulu",null,null,101,"Gündüz Ekders",4,4,4,4,4,null,null,20,null,null,null,null,null,null,null,null,null,null,null,null,null,null,null,null,null,null,null,null,null,null,null,null,null,null,null,null,null,null,null,null,0,{"$f":"SUM(AX57:AX61)","v":0},null,null,null,null,null,null,null,null,null,null,null,""]
[null,null,null,null,null,null,null,101,"Nöbet",null,null,null,null,null,null,null,0,null,null,null,null,null,null,null,null,null,null,null,null,null,null,null,null,null,null,null,null,null,null,null,null,null,null,null,null,null,null,null,null,0,null,null,null,null,null,null,null,null,null,null,null,null,""]
[null,null,null,null,null,null,null,101,"Yüz Yüze Eğitim",null,null,null,null,null,null,null,0,null,null,null,null,null,null,null,null,null,null,null,null,null,null,null,null,null,null,null,null,null,null,null,null,null,null,null,null,null,null,null,null,0,null,null,null,null,null,null,null,null,null,null,null,null,""]
[null,null,null,null,null,null,null,101,"Belleticilik",null,null,null,null,null,null,null,0,null,null,null,null,null,null,null,null,null,null,null,null,null,null,null,null,null,null,null,null,null,null,null,null,null,null,null,null,null,null,null,null,0,null,null,null,null,null,null,null,null,null,null,null,null,""]
[null,null,null,null,null,null,null,101,"Sınav Görevi",null,null,null,null,null,null,null,0,null,null,null,null,null,null,null,null,null,null,null,null,null,null,null,null,null,null,null,null,null,null,null,null,null,null,null,null,null,null,null,null,0,null,null,null,null,null,null,null,null,null,null,null,null,""]
[null,{"$f":"+GİRİŞ!A13","v":12},{"$f":"+GİRİŞ!B13","v":"ALİ VELİ"},{"$f":"+GİRİŞ!C13","v":"FELSEFE"},"İnönü Ortaokulu",null,null,101,null,null,null,null,null,null,null,null,0,null,null,null,null,null,null,null,null,null,null,null,null,null,null,null,null,null,null,null,null,null,null,null,null,null,null,null,null,null,null,null,null,0,{"$f":"SUM(AX62:AX66)","v":0},null,null,null,null,null,null,null,null,null,null,null,""]
[null,null,null,null,null,null,null,101,null,null,null,null,null,null,null,null,0,null,null,null,null,null,null,null,null,null,null,null,null,null,null,null,null,null,null,null,null,null,null,null,null,null,null,null,null,null,null,null,null,0,null,null,null,null,null,null,null,null,null,null,null,null,""]
[null,null,null,null,null,null,null,101,null,null,null,null,null,null,null,null,0,null,null,null,null,null,null,null,null,null,null,null,null,null,null,null,null,null,null,null,null,null,null,null,null,null,null,null,null,null,null,null,null,0,null,null,null,null,null,null,null,null,null,null,null,null,""]
[null,null,null,null,null,null,null,101,null,null,null,null,null,null,null,null,0,null,null,null,null,null,null,null,null,null,null,null,null,null,null,null,null,null,null,null,null,null,null,null,null,null,null,null,null,null,null,null,null,0,null,null,null,null,null,null,null,null,null,null,null,null,""]
[null,null,null,null,null,null,null,101,null,null,null,null,null,null,null,null,0,null,null,null,null,null,null,null,null,null,null,null,null,null,null,null,null,null,null,null,null,null,null,null,null,null,null,null,null,null,null,null,null,0,null,null,null,null,null,null,null,null,null,null,null,null,""]
[null,{"$f":"+GİRİŞ!A14","v":13},{"$f":"+GİRİŞ!B14","v":"ALİ VELİ"},{"$f":"+GİRİŞ!C14","v":"FELSEFE"},"İnönü Ortaokulu",null,null,101,null,null,null,null,null,null,null,null,0,null,null,null,null,null,null,null,null,null,null,null,null,null,null,null,null,null,null,null,null,null,null,null,null,null,null,null,null,null,null,null,null,0,{"$f":"SUM(AX67:AX71)","v":0},null,null,null,null,null,null,null,null,null,null,null,""]
[null,null,null,null,null,null,null,101,null,null,null,null,null,null,null,null,0,null,null,null,null,null,null,null,null,null,null,null,null,null,null,null,null,null,null,null,null,null,null,null,null,null,null,null,null,null,null,null,null,0,null,null,null,null,null,null,null,null,null,null,null,null,""]
[null,null,null,null,null,null,null,101,null,null,null,null,null,null,null,null,0,null,null,null,null,null,null,null,null,null,null,null,null,null,null,null,null,null,null,null,null,null,null,null,null,null,null,null,null,null,null,null,null,0,null,null,null,null,null,null,null,null,null,null,null,null,""]
[null,null,null,null,null,null,null,101,null,null,null,null,null,null,null,null,0,null,null,null,null,null,null,null,null,null,null,null,null,null,null,null,null,null,null,null,null,null,null,null,null,null,null,null,null,null,null,null,null,0,null,null,null,null,null,null,null,null,null,null,null,null,""]
[null,null,null,null,null,null,null,101,null,null,null,null,null,null,null,null,0,null,null,null,null,null,null,null,null,null,null,null,null,null,null,null,null,null,null,null,null,null,null,null,null,null,null,null,null,null,null,null,null,0,null,null,null,null,null,null,null,null,null,null,null,null,""]
[null,{"$f":"+GİRİŞ!A15","v":14},{"$f":"+GİRİŞ!B15","v":"ALİ VELİ"},{"$f":"+GİRİŞ!C15","v":"FELSEFE"},"İnönü Ortaokulu",null,null,101,null,null,null,null,null,null,null,null,{"$f":"SUM(J72:P72)","v":0},null,null,null,null,null,null,null,null,null,null,null,null,null,null,null,null,null,null,null,null,null,null,null,null,null,null,null,null,null,null,null,null,{"$f":"SUM(R72:AV72)","v":0},{"$f":"SUM(AX72:AX76)","v":0},null,null,null,null,null,null,null,null,null,null,null,{"$f":"IF(AX72>0,\"Harun\",\"\")","v":""}]
[null,null,null,null,null,null,null,101,null,null,null,null,null,null,null,null,0,null,null,null,null,null,null,null,null,null,null,null,null,null,null,null,null,null,null,null,null,null,null,null,null,null,null,null,null,null,null,null,null,0,null,null,null,null,null,null,null,null,null,null,null,null,""]
[null,null,null,null,null,null,null,101,null,null,null,null,null,null,null,null,0,null,null,null,null,null,null,null,null,null,null,null,null,null,null,null,null,null,null,null,null,null,null,null,null,null,null,null,null,null,null,null,null,0,null,null,null,null,null,null,null,null,null,null,null,null,""]
[null,null,null,null,null,null,null,101,null,null,null,null,null,null,null,null,0,null,null,null,null,null,null,null,null,null,null,null,null,null,null,null,null,null,null,null,null,null,null,null,null,null,null,null,null,null,null,null,null,0,null,null,null,null,null,null,null,null,null,null,null,null,""]
[null,null,null,null,null,null,null,101,null,null,null,null,null,null,null,null,0,null,null,null,null,null,null,null,null,null,null,null,null,null,null,null,null,null,null,null,null,null,null,null,null,null,null,null,null,null,null,null,null,0,null,null,null,null,null,null,null,null,null,null,null,null,""]
[null,{"$f":"+GİRİŞ!A16","v":15},{"$f":"+GİRİŞ!B16","v":"ALİ VELİ"},{"$f":"+GİRİŞ!C16","v":"FELSEFE"},"İnönü Ortaokulu",null,null,101,null,null,null,null,null,null,null,null,0,null,null,null,null,null,null,null,null,null,null,null,null,null,null,null,null,null,null,null,null,null,null,null,null,null,null,null,null,null,null,null,null,0,{"$f":"SUM(AX77:AX81)","v":0},null,null,null,null,null,null,null,null,null,null,null,""]
[null,null,null,null,null,null,null,101,null,null,null,null,null,null,null,null,0,null,null,null,null,null,null,null,null,null,null,null,null,null,null,null,null,null,null,null,null,null,null,null,null,null,null,null,null,null,null,null,null,0,null,null,null,null,null,null,null,null,null,null,null,null,""]
[null,null,null,null,null,null,null,101,null,null,null,null,null,null,null,null,0,null,null,null,null,null,null,null,null,null,null,null,null,null,null,null,null,null,null,null,null,null,null,null,null,null,null,null,null,null,null,null,null,0,null,null,null,null,null,null,null,null,null,null,null,null,""]
[null,null,null,null,null,null,null,101,null,null,null,null,null,null,null,null,0,null,null,null,null,null,null,null,null,null,null,null,null,null,null,null,null,null,null,null,null,null,null,null,null,null,null,null,null,null,null,null,null,0,null,null,null,null,null,null,null,null,null,null,null,null,""]
[null,null,null,null,null,null,null,101,null,null,null,null,null,null,null,null,0,null,null,null,null,null,null,null,null,null,null,null,null,null,null,null,null,null,null,null,null,null,null,null,null,null,null,null,null,null,null,null,null,0,null,null,null,null,null,null,null,null,null,null,null,null,""]
[null,{"$f":"+GİRİŞ!A17","v":16},{"$f":"+GİRİŞ!B17","v":"ALİ VELİ"},{"$f":"+GİRİŞ!C17","v":"FELSEFE"},"İnönü Ortaokulu",null,null,101,null,null,null,null,null,null,null,null,0,null,null,null,null,null,null,null,null,null,null,null,null,null,null,null,null,null,null,null,null,null,null,null,null,null,null,null,null,null,null,null,null,0,{"$f":"SUM(AX82:AX86)","v":0},null,null,null,null,null,null,null,null,null,null,null,""]
[null,null,null,null,null,null,null,101,null,null,null,null,null,null,null,null,0,null,null,null,null,null,null,null,null,null,null,null,null,null,null,null,null,null,null,null,null,null,null,null,null,null,null,null,null,null,null,null,null,0,null,null,null,null,null,null,null,null,null,null,null,null,""]
[null,null,null,null,null,null,null,101,null,null,null,null,null,null,null,null,0,null,null,null,null,null,null,null,null,null,null,null,null,null,null,null,null,null,null,null,null,null,null,null,null,null,null,null,null,null,null,null,null,0,null,null,null,null,null,null,null,null,null,null,null,null,""]
[null,null,null,null,null,null,null,101,null,null,null,null,null,null,null,null,0,null,null,null,null,null,null,null,null,null,null,null,null,null,null,null,null,null,null,null,null,null,null,null,null,null,null,null,null,null,null,null,null,0,null,null,null,null,null,null,null,null,null,null,null,null,""]
[null,null,null,null,null,null,null,101,null,null,null,null,null,null,null,null,0,null,null,null,null,null,null,null,null,null,null,null,null,null,null,null,null,null,null,null,null,null,null,null,null,null,null,null,null,null,null,null,null,0,null,null,null,null,null,null,null,null,null,null,null,null,""]
[null,{"$f":"+GİRİŞ!A18","v":17},{"$f":"+GİRİŞ!B18","v":"ALİ VELİ"},{"$f":"+GİRİŞ!C18","v":"FELSEFE"},"İnönü Ortaokulu",null,null,101,null,null,null,null,null,null,null,null,0,null,null,null,null,null,null,null,null,null,null,null,null,null,null,null,null,null,null,null,null,null,null,null,null,null,null,null,null,null,null,null,null,0,{"$f":"SUM(AX87:AX91)","v":0},null,null,null,null,null,null,null,null,null,null,null,""]
[null,null,null,null,null,null,null,101,null,null,null,null,null,null,null,null,0,null,null,null,null,null,null,null,null,null,null,null,null,null,null,null,null,null,null,null,null,null,null,null,null,null,null,null,null,null,null,null,null,0,null,null,null,null,null,null,null,null,null,null,null,null,""]
[null,null,null,null,null,null,null,101,null,null,null,null,null,null,null,null,0,null,null,null,null,null,null,null,null,null,null,null,null,null,null,null,null,null,null,null,null,null,null,null,null,null,null,null,null,null,null,null,null,0,null,null,null,null,null,null,null,null,null,null,null,null,""]
[null,null,null,null,null,null,null,101,null,null,null,null,null,null,null,null,0,null,null,null,null,null,null,null,null,null,null,null,null,null,null,null,null,null,null,null,null,null,null,null,null,null,null,null,null,null,null,null,null,0,null,null,null,null,null,null,null,null,null,null,null,null,""]
[null,null,null,null,null,null,null,101,null,null,null,null,null,null,null,null,0,null,null,null,null,null,null,null,null,null,null,null,null,null,null,null,null,null,null,null,null,null,null,null,null,null,null,null,null,null,null,null,null,0,null,null,null,null,null,null,null,null,null,null,null,null,""]
[null,{"$f":"+GİRİŞ!A19","v":18},{"$f":"+GİRİŞ!B19","v":"ALİ VELİ"},{"$f":"+GİRİŞ!C19","v":"FELSEFE"},"İnönü Ortaokulu",null,null,101,null,null,null,null,null,null,null,null,0,null,null,null,null,null,null,null,null,null,null,null,null,null,null,null,null,null,null,null,null,null,null,null,null,null,null,null,null,null,null,null,null,0,{"$f":"SUM(AX92:AX96)","v":0},null,null,null,null,null,null,null,null,null,null,null,""]
[null,null,null,null,null,null,null,101,null,null,null,null,null,null,null,null,0,null,null,null,null,null,null,null,null,null,null,null,null,null,null,null,null,null,null,null,null,null,null,null,null,null,null,null,null,null,null,null,null,0,null,null,null,null,null,null,null,null,null,null,null,null,""]
[null,null,null,null,null,null,null,101,null,null,null,null,null,null,null,null,0,null,null,null,null,null,null,null,null,null,null,null,null,null,null,null,null,null,null,null,null,null,null,null,null,null,null,null,null,null,null,null,null,0,null,null,null,null,null,null,null,null,null,null,null,null,""]
[null,null,null,null,null,null,null,101,null,null,null,null,null,null,null,null,0,null,null,null,null,null,null,null,null,null,null,null,null,null,null,null,null,null,null,null,null,null,null,null,null,null,null,null,null,null,null,null,null,0,null,null,null,null,null,null,null,null,null,null,null,null,""]
[null,null,null,null,null,null,null,101,null,null,null,null,null,null,null,null,0,null,null,null,null,null,null,null,null,null,null,null,null,null,null,null,null,null,null,null,null,null,null,null,null,null,null,null,null,null,null,null,null,0,null,null,null,null,null,null,null,null,null,null,null,null,""]
[null,{"$f":"+GİRİŞ!A20","v":19},{"$f":"+GİRİŞ!B20","v":"ALİ VELİ"},{"$f":"+GİRİŞ!C20","v":"FELSEFE"},"İnönü Ortaokulu",null,null,101,null,null,null,null,null,null,null,null,0,null,null,null,null,null,null,null,null,null,null,null,null,null,null,null,null,null,null,null,null,null,null,null,null,null,null,null,null,null,null,null,null,0,{"$f":"SUM(AX97:AX101)","v":0},null,null,null,null,null,null,null,null,null,null,null,""]
[null,null,null,null,null,null,null,101,null,null,null,null,null,null,null,null,0,null,null,null,null,null,null,null,null,null,null,null,null,null,null,null,null,null,null,null,null,null,null,null,null,null,null,null,null,null,null,null,null,0,null,null,null,null,null,null,null,null,null,null,null,null,""]
[null,null,null,null,null,null,null,101,null,null,null,null,null,null,null,null,0,null,null,null,null,null,null,null,null,null,null,null,null,null,null,null,null,null,null,null,null,null,null,null,null,null,null,null,null,null,null,null,null,0,null,null,null,null,null,null,null,null,null,null,null,null,""]
[null,null,null,null,null,null,null,101,null,null,null,null,null,null,null,null,0,null,null,null,null,null,null,null,null,null,null,null,null,null,null,null,null,null,null,null,null,null,null,null,null,null,null,null,null,null,null,null,null,0,null,null,null,null,null,null,null,null,null,null,null,null,""]
[null,null,null,null,null,null,null,101,null,null,null,null,null,null,null,null,0,null,null,null,null,null,null,null,null,null,null,null,null,null,null,null,null,null,null,null,null,null,null,null,null,null,null,null,null,null,null,null,null,0,null,null,null,null,null,null,null,null,null,null,null,null,""]
[null,{"$f":"+GİRİŞ!A21","v":20},{"$f":"+GİRİŞ!B21","v":"ALİ VELİ"},{"$f":"+GİRİŞ!C21","v":"FELSEFE"},"İnönü Ortaokulu",null,null,101,null,null,null,null,null,null,null,null,0,null,null,null,null,null,null,null,null,null,null,null,null,null,null,null,null,null,null,null,null,null,null,null,null,null,null,null,null,null,null,null,null,0,{"$f":"SUM(AX102:AX106)","v":0},null,null,null,null,null,null,null,null,null,null,null,""]
[null,null,null,null,null,null,null,101,null,null,null,null,null,null,null,null,0,null,null,null,null,null,null,null,null,null,null,null,null,null,null,null,null,null,null,null,null,null,null,null,null,null,null,null,null,null,null,null,null,0,null,null,null,null,null,null,null,null,null,null,null,null,""]
[null,null,null,null,null,null,null,101,null,null,null,null,null,null,null,null,0,null,null,null,null,null,null,null,null,null,null,null,null,null,null,null,null,null,null,null,null,null,null,null,null,null,null,null,null,null,null,null,null,0,null,null,null,null,null,null,null,null,null,null,null,null,""]
[null,null,null,null,null,null,null,101,null,null,null,null,null,null,null,null,0,null,null,null,null,null,null,null,null,null,null,null,null,null,null,null,null,null,null,null,null,null,null,null,null,null,null,null,null,null,null,null,null,0,null,null,null,null,null,null,null,null,null,null,null,null,""]
[null,null,null,null,null,null,null,101,null,null,null,null,null,null,null,null,0,null,null,null,null,null,null,null,null,null,null,null,null,null,null,null,null,null,null,null,null,null,null,null,null,null,null,null,null,null,null,null,null,0,null,null,null,null,null,null,null,null,null,null,null,null,""]
[null,{"$f":"+GİRİŞ!A22","v":21},{"$f":"+GİRİŞ!B22","v":"ALİ VELİ"},{"$f":"+GİRİŞ!C22","v":"FELSEFE"},"İnönü Ortaokulu",null,null,101,null,null,null,null,null,null,null,null,0,null,null,null,null,null,null,null,null,null,null,null,null,null,null,null,null,null,null,null,null,null,null,null,null,null,null,null,null,null,null,null,null,0,{"$f":"SUM(AX107:AX111)","v":0},null,null,null,null,null,null,null,null,null,null,null,"",null,null,null,null,null,null,null,null,null,null,null,null,null,null,{"$f":"COUNTIF(R107:AV107,\"1\")","v":0},{"$f":"COUNTIF(R107:AV107,\"x\")","v":0}]
[null,null,null,null,null,null,null,101,null,null,null,null,null,null,null,null,0,null,null,null,null,null,null,null,null,null,null,null,null,null,null,null,null,null,null,null,null,null,null,null,null,null,null,null,null,null,null,null,null,0,null,null,null,null,null,null,null,null,null,null,null,null,"",null,null,null,null,null,null,null,null,null,null,null,null,null,null,0,0]
[null,null,null,null,null,null,null,101,null,null,null,null,null,null,null,null,0,null,null,null,null,null,null,null,null,null,null,null,null,null,null,null,null,null,null,null,null,null,null,null,null,null,null,null,null,null,null,null,null,0,null,null,null,null,null,null,null,null,null,null,null,null,"",null,null,null,null,null,null,null,null,null,null,null,null,null,null,0,0]
[null,null,null,null,null,null,null,101,null,null,null,null,null,null,null,null,0,null,null,null,null,null,null,null,null,null,null,null,null,null,null,null,null,null,null,null,null,null,null,null,null,null,null,null,null,null,null,null,null,0,null,null,null,null,null,null,null,null,null,null,null,null,"",null,null,null,null,null,null,null,null,null,null,null,null,null,null,0,0]
[null,null,null,null,null,null,null,101,null,null,null,null,null,null,null,null,0,null,null,null,null,null,null,null,null,null,null,null,null,null,null,null,null,null,null,null,null,null,null,null,null,null,null,null,null,null,null,null,null,0,null,null,null,null,null,null,null,null,null,null,null,null,"",null,null,null,null,null,null,null,null,null,null,null,null,null,null,0,0]
[null,{"$f":"+GİRİŞ!A23","v":22},{"$f":"+GİRİŞ!B23","v":"ALİ VELİ"},{"$f":"+GİRİŞ!C23","v":"FELSEFE"},"İnönü Ortaokulu",null,null,101,null,null,null,null,null,null,null,null,0,null,null,null,null,null,null,null,null,null,null,null,null,null,null,null,null,null,null,null,null,null,null,null,null,null,null,null,null,null,null,null,null,0,{"$f":"SUM(AX112:AX116)","v":0},null,null,null,null,null,null,null,null,null,null,null,"",null,null,null,null,null,null,null,null,null,null,null,null,null,null,0,0]
[null,null,null,null,null,null,null,101,null,null,null,null,null,null,null,null,0,null,null,null,null,null,null,null,null,null,null,null,null,null,null,null,null,null,null,null,null,null,null,null,null,null,null,null,null,null,null,null,null,0,null,null,null,null,null,null,null,null,null,null,null,null,"",null,null,null,null,null,null,null,null,null,null,null,null,null,null,0,0]
[null,null,null,null,null,null,null,101,null,null,null,null,null,null,null,null,0,null,null,null,null,null,null,null,null,null,null,null,null,null,null,null,null,null,null,null,null,null,null,null,null,null,null,null,null,null,null,null,null,0,null,null,null,null,null,null,null,null,null,null,null,null,"",null,null,null,null,null,null,null,null,null,null,null,null,null,null,0,0]
[null,null,null,null,null,null,null,101,null,null,null,null,null,null,null,null,0,null,null,null,null,null,null,null,null,null,null,null,null,null,null,null,null,null,null,null,null,null,null,null,null,null,null,null,null,null,null,null,null,0,null,null,null,null,null,null,null,null,null,null,null,null,"",null,null,null,null,null,null,null,null,null,null,null,null,null,null,0,0]
[null,null,null,null,null,null,null,101,null,null,null,null,null,null,null,null,0,null,null,null,null,null,null,null,null,null,null,null,null,null,null,null,null,null,null,null,null,null,null,null,null,null,null,null,null,null,null,null,null,0,null,null,null,null,null,null,null,null,null,null,null,null,"",null,null,null,null,null,null,null,null,null,null,null,null,null,null,0,0]
[null,{"$f":"+GİRİŞ!A24","v":23},{"$f":"+GİRİŞ!B24","v":"ALİ VELİ"},{"$f":"+GİRİŞ!C24","v":"FELSEFE"},"İnönü Ortaokulu",null,null,101,null,null,null,null,null,null,null,null,0,null,null,null,null,null,null,null,null,null,null,null,null,null,null,null,null,null,null,null,null,null,null,null,null,null,null,null,null,null,null,null,null,0,{"$f":"SUM(AX117:AX121)","v":0},null,null,null,null,null,null,null,null,null,null,null,"",null,null,null,null,null,null,null,null,null,null,null,null,null,null,0,0]
[null,null,null,null,null,null,null,101,null,null,null,null,null,null,null,null,0,null,null,null,null,null,null,null,null,null,null,null,null,null,null,null,null,null,null,null,null,null,null,null,null,null,null,null,null,null,null,null,null,0,null,null,null,null,null,null,null,null,null,null,null,null,"",null,null,null,null,null,null,null,null,null,null,null,null,null,null,0,0]
[null,null,null,null,null,null,null,101,null,null,null,null,null,null,null,null,0,null,null,null,null,null,null,null,null,null,null,null,null,null,null,null,null,null,null,null,null,null,null,null,null,null,null,null,null,null,null,null,null,0,null,null,null,null,null,null,null,null,null,null,null,null,"",null,null,null,null,null,null,null,null,null,null,null,null,null,null,0,0]
[null,null,null,null,null,null,null,101,null,null,null,null,null,null,null,null,0,null,null,null,null,null,null,null,null,null,null,null,null,null,null,null,null,null,null,null,null,null,null,null,null,null,null,null,null,null,null,null,null,0,null,null,null,null,null,null,null,null,null,null,null,null,"",null,null,null,null,null,null,null,null,null,null,null,null,null,null,0,0]
[null,null,null,null,null,null,null,101,null,null,null,null,null,null,null,null,0,null,null,null,null,null,null,null,null,null,null,null,null,null,null,null,null,null,null,null,null,null,null,null,null,null,null,null,null,null,null,null,null,0,null,null,null,null,null,null,null,null,null,null,null,null,"",null,null,null,null,null,null,null,null,null,null,null,null,null,null,0,0]
[null,{"$f":"+GİRİŞ!A25","v":24},{"$f":"+GİRİŞ!B25","v":"ALİ VELİ"},{"$f":"+GİRİŞ!C25","v":"FELSEFE"},"İnönü Ortaokulu",null,null,101,null,null,null,null,null,null,null,null,0,null,null,null,null,null,null,null,null,null,null,null,null,null,null,null,null,null,null,null,null,null,null,null,null,null,null,null,null,null,null,null,null,0,{"$f":"SUM(AX122:AX126)","v":0},null,null,null,null,null,null,null,null,null,null,null,"",null,null,null,null,null,null,null,null,null,null,null,null,null,null,0,0]
[null,null,null,null,null,null,null,101,null,null,null,null,null,null,null,null,0,null,null,null,null,null,null,null,null,null,null,null,null,null,null,null,null,null,null,null,null,null,null,null,null,null,null,null,null,null,null,null,null,0,null,null,null,null,null,null,null,null,null,null,null,null,"",null,null,null,null,null,null,null,null,null,null,null,null,null,null,0,0]
[null,null,null,null,null,null,null,101,null,null,null,null,null,null,null,null,0,null,null,null,null,null,null,null,null,null,null,null,null,null,null,null,null,null,null,null,null,null,null,null,null,null,null,null,null,null,null,null,null,0,null,null,null,null,null,null,null,null,null,null,null,null,"",null,null,null,null,null,null,null,null,null,null,null,null,null,null,0,0]
[null,null,null,null,null,null,null,101,null,null,null,null,null,null,null,null,0,null,null,null,null,null,null,null,null,null,null,null,null,null,null,null,null,null,null,null,null,null,null,null,null,null,null,null,null,null,null,null,null,0,null,null,null,null,null,null,null,null,null,null,null,null,"",null,null,null,null,null,null,null,null,null,null,null,null,null,null,0,0]
[null,null,null,null,null,null,null,101,null,null,null,null,null,null,null,null,0,null,null,null,null,null,null,null,null,null,null,null,null,null,null,null,null,null,null,null,null,null,null,null,null,null,null,null,null,null,null,null,null,0,null,null,null,null,null,null,null,null,null,null,null,null,"",null,null,null,null,null,null,null,null,null,null,null,null,null,null,{"$f":"COUNTIF(R126:AV126,\"1\")","v":0},{"$f":"COUNTIF(R126:AV126,\"x\")","v":0}]
[null,{"$f":"+GİRİŞ!A26","v":25},{"$f":"+GİRİŞ!B26","v":"ALİ VELİ"},{"$f":"+GİRİŞ!C26","v":"FELSEFE"},"İnönü Ortaokulu",null,null,101,null,null,null,null,null,null,null,null,0,null,null,null,null,null,null,null,null,null,null,null,null,null,null,null,null,null,null,null,null,null,null,null,null,null,null,null,null,null,null,null,null,0,{"$f":"SUM(AX127:AX131)","v":0},null,null,null,null,null,null,null,null,null,null,null,"",null,null,null,null,null,null,null,null,null,null,null,null,null,null,0,0]
[null,null,null,null,null,null,null,101,null,null,null,null,null,null,null,null,0,null,null,null,null,null,null,null,null,null,null,null,null,null,null,null,null,null,null,null,null,null,null,null,null,null,null,null,null,null,null,null,null,0,null,null,null,null,null,null,null,null,null,null,null,null,"",null,null,null,null,null,null,null,null,null,null,null,null,null,null,0,0]
[null,null,null,null,null,null,null,101,null,null,null,null,null,null,null,null,0,null,null,null,null,null,null,null,null,null,null,null,null,null,null,null,null,null,null,null,null,null,null,null,null,null,null,null,null,null,null,null,null,0,null,null,null,null,null,null,null,null,null,null,null,null,"",null,null,null,null,null,null,null,null,null,null,null,null,null,null,0,0]
[null,null,null,null,null,null,null,101,null,null,null,null,null,null,null,null,0,null,null,null,null,null,null,null,null,null,null,null,null,null,null,null,null,null,null,null,null,null,null,null,null,null,null,null,null,null,null,null,null,0,null,null,null,null,null,null,null,null,null,null,null,null,"",null,null,null,null,null,null,null,null,null,null,null,null,null,null,0,0]
[null,null,null,null,null,null,null,101,null,null,null,null,null,null,null,null,0,null,null,null,null,null,null,null,null,null,null,null,null,null,null,null,null,null,null,null,null,null,null,null,null,null,null,null,null,null,null,null,null,0,null,null,null,null,null,null,null,null,null,null,null,null,"",null,null,null,null,null,null,null,null,null,null,null,null,null,null,0,0]
[null,{"$f":"+GİRİŞ!A27","v":26},{"$f":"+GİRİŞ!B27","v":"ALİ VELİ"},{"$f":"+GİRİŞ!C27","v":"FELSEFE"},"İnönü Ortaokulu",null,null,101,null,null,null,null,null,null,null,null,0,null,null,null,null,null,null,null,null,null,null,null,null,null,null,null,null,null,null,null,null,null,null,null,null,null,null,null,null,null,null,null,null,0,{"$f":"SUM(AX132:AX136)","v":0},null,null,null,null,null,null,null,null,null,null,null,"",null,null,null,null,null,null,null,null,null,null,null,null,null,null,0,0]
[null,null,null,null,null,null,null,101,null,null,null,null,null,null,null,null,0,null,null,null,null,null,null,null,null,null,null,null,null,null,null,null,null,null,null,null,null,null,null,null,null,null,null,null,null,null,null,null,null,0,null,null,null,null,null,null,null,null,null,null,null,null,"",null,null,null,null,null,null,null,null,null,null,null,null,null,null,0,0]
[null,null,null,null,null,null,null,101,null,null,null,null,null,null,null,null,0,null,null,null,null,null,null,null,null,null,null,null,null,null,null,null,null,null,null,null,null,null,null,null,null,null,null,null,null,null,null,null,null,0,null,null,null,null,null,null,null,null,null,null,null,null,"",null,null,null,null,null,null,null,null,null,null,null,null,null,null,0,0]
[null,null,null,null,null,null,null,101,null,null,null,null,null,null,null,null,0,null,null,null,null,null,null,null,null,null,null,null,null,null,null,null,null,null,null,null,null,null,null,null,null,null,null,null,null,null,null,null,null,0,null,null,null,null,null,null,null,null,null,null,null,null,"",null,null,null,null,null,null,null,null,null,null,null,null,null,null,0,0]
[null,null,null,null,null,null,null,101,null,null,null,null,null,null,null,null,{"$f":"SUM(J136:P136)","v":0},null,null,null,null,null,null,null,null,null,null,null,null,null,null,null,null,null,null,null,null,null,null,null,null,null,null,null,null,null,null,null,null,{"$f":"SUM(R136:AV136)","v":0},null,null,null,null,null,null,null,null,null,null,null,null,{"$f":"IF(AX136>0,\"Harun\",\"\")","v":""},null,null,null,null,null,null,null,null,null,null,null,null,null,null,0,0]
[null,{"$f":"+GİRİŞ!A28","v":27},{"$f":"+GİRİŞ!B28","v":"ALİ VELİ"},{"$f":"+GİRİŞ!C28","v":"FELSEFE"},"İnönü Ortaokulu",null,null,101,null,null,null,null,null,null,null,null,0,null,null,null,null,null,null,null,null,null,null,null,null,null,null,null,null,null,null,null,null,null,null,null,null,null,null,null,null,null,null,null,null,0,{"$f":"SUM(AX137:AX141)","v":0},null,null,null,null,null,null,null,null,null,null,null,"",null,null,null,null,null,null,null,null,null,null,null,null,null,null,0,0]
[null,null,null,null,null,null,null,101,null,null,null,null,null,null,null,null,0,null,null,null,null,null,null,null,null,null,null,null,null,null,null,null,null,null,null,null,null,null,null,null,null,null,null,null,null,null,null,null,null,0,null,null,null,null,null,null,null,null,null,null,null,null,"",null,null,null,null,null,null,null,null,null,null,null,null,null,null,0,0]
[null,null,null,null,null,null,null,101,null,null,null,null,null,null,null,null,0,null,null,null,null,null,null,null,null,null,null,null,null,null,null,null,null,null,null,null,null,null,null,null,null,null,null,null,null,null,null,null,null,0,null,null,null,null,null,null,null,null,null,null,null,null,"",null,null,null,null,null,null,null,null,null,null,null,null,null,null,0,0]
[null,null,null,null,null,null,null,101,null,null,null,null,null,null,null,null,0,null,null,null,null,null,null,null,null,null,null,null,null,null,null,null,null,null,null,null,null,null,null,null,null,null,null,null,null,null,null,null,null,0,null,null,null,null,null,null,null,null,null,null,null,null,"",null,null,null,null,null,null,null,null,null,null,null,null,null,null,0,0]
[null,null,null,null,null,null,null,101,null,null,null,null,null,null,null,null,0,null,null,null,null,null,null,null,null,null,null,null,null,null,null,null,null,null,null,null,null,null,null,null,null,null,null,null,null,null,null,null,null,0,null,null,null,null,null,null,null,null,null,null,null,null,"",null,null,null,null,null,null,null,null,null,null,null,null,null,null,0,0]
[null,{"$f":"+GİRİŞ!A29","v":28},{"$f":"+GİRİŞ!B29","v":"ALİ VELİ"},{"$f":"+GİRİŞ!C29","v":"FELSEFE"},"İnönü Ortaokulu",null,null,101,null,null,null,null,null,null,null,null,0,null,null,null,null,null,null,null,null,null,null,null,null,null,null,null,null,null,null,null,null,null,null,null,null,null,null,null,null,null,null,null,null,0,{"$f":"SUM(AX142:AX146)","v":0},null,null,null,null,null,null,null,null,null,null,null,"",null,null,null,null,null,null,null,null,null,null,null,null,null,null,0,0]
[null,null,null,null,null,null,null,101,null,null,null,null,null,null,null,null,0,null,null,null,null,null,null,null,null,null,null,null,null,null,null,null,null,null,null,null,null,null,null,null,null,null,null,null,null,null,null,null,null,0,null,null,null,null,null,null,null,null,null,null,null,null,"",null,null,null,null,null,null,null,null,null,null,null,null,null,null,0,0]
[null,null,null,null,null,null,null,101,null,null,null,null,null,null,null,null,0,null,null,null,null,null,null,null,null,null,null,null,null,null,null,null,null,null,null,null,null,null,null,null,null,null,null,null,null,null,null,null,null,0,null,null,null,null,null,null,null,null,null,null,null,null,"",null,null,null,null,null,null,null,null,null,null,null,null,null,null,0,0]
[null,null,null,null,null,null,null,101,null,null,null,null,null,null,null,null,0,null,null,null,null,null,null,null,null,null,null,null,null,null,null,null,null,null,null,null,null,null,null,null,null,null,null,null,null,null,null,null,null,0,null,null,null,null,null,null,null,null,null,null,null,null,"",null,null,null,null,null,null,null,null,null,null,null,null,null,null,0,0]
[null,null,null,null,null,null,null,101,null,null,null,null,null,null,null,null,0,null,null,null,null,null,null,null,null,null,null,null,null,null,null,null,null,null,null,null,null,null,null,null,null,null,null,null,null,null,null,null,null,0,null,null,null,null,null,null,null,null,null,null,null,null,"",null,null,null,null,null,null,null,null,null,null,null,null,null,null,0,0]
[null,{"$f":"+GİRİŞ!A30","v":29},{"$f":"+GİRİŞ!B30","v":"ALİ VELİ"},{"$f":"+GİRİŞ!C30","v":"FELSEFE"},"İnönü Ortaokulu",null,null,101,null,null,null,null,null,null,null,null,0,null,null,null,null,null,null,null,null,null,null,null,null,null,null,null,null,null,null,null,null,null,null,null,null,null,null,null,null,null,null,null,null,0,{"$f":"SUM(AX147:AX151)","v":0},null,null,null,null,null,null,null,null,null,null,null,"",null,null,null,null,null,null,null,null,null,null,null,null,null,null,0,0]
[null,null,null,null,null,null,null,101,null,null,null,null,null,null,null,null,0,null,null,null,null,null,null,null,null,null,null,null,null,null,null,null,null,null,null,null,null,null,null,null,null,null,null,null,null,null,null,null,null,0,null,null,null,null,null,null,null,null,null,null,null,null,"",null,null,null,null,null,null,null,null,null,null,null,null,null,null,0,0]
[null,null,null,null,null,null,null,101,null,null,null,null,null,null,null,null,0,null,null,null,null,null,null,null,null,null,null,null,null,null,null,null,null,null,null,null,null,null,null,null,null,null,null,null,null,null,null,null,null,0,null,null,null,null,null,null,null,null,null,null,null,null,"",null,null,null,null,null,null,null,null,null,null,null,null,null,null,0,0]
[null,null,null,null,null,null,null,101,null,null,null,null,null,null,null,null,0,null,null,null,null,null,null,null,null,null,null,null,null,null,null,null,null,null,null,null,null,null,null,null,null,null,null,null,null,null,null,null,null,0,null,null,null,null,null,null,null,null,null,null,null,null,"",null,null,null,null,null,null,null,null,null,null,null,null,null,null,0,0]
[null,null,null,null,null,null,null,101,null,null,null,null,null,null,null,null,0,null,null,null,null,null,null,null,null,null,null,null,null,null,null,null,null,null,null,null,null,null,null,null,null,null,null,null,null,null,null,null,null,0,null,null,null,null,null,null,null,null,null,null,null,null,"",null,null,null,null,null,null,null,null,null,null,null,null,null,null,0,0]
[null,{"$f":"+GİRİŞ!A31","v":30},{"$f":"+GİRİŞ!B31","v":"ALİ VELİ"},{"$f":"+GİRİŞ!C31","v":"FELSEFE"},"İnönü Ortaokulu",null,null,101,null,null,null,null,null,null,null,null,0,null,null,null,null,null,null,null,null,null,null,null,null,null,null,null,null,null,null,null,null,null,null,null,null,null,null,null,null,null,null,null,null,0,{"$f":"SUM(AX152:AX156)","v":0},null,null,null,null,null,null,null,null,null,null,null,""]
[null,null,null,null,null,null,null,101,null,null,null,null,null,null,null,null,0,null,null,null,null,null,null,null,null,null,null,null,null,null,null,null,null,null,null,null,null,null,null,null,null,null,null,null,null,null,null,null,null,0,null,null,null,null,null,null,null,null,null,null,null,null,""]
[null,null,null,null,null,null,null,101,null,null,null,null,null,null,null,null,0,null,null,null,null,null,null,null,null,null,null,null,null,null,null,null,null,null,null,null,null,null,null,null,null,null,null,null,null,null,null,null,null,0,null,null,null,null,null,null,null,null,null,null,null,null,""]
[null,null,null,null,null,null,null,101,null,null,null,null,null,null,null,null,0,null,null,null,null,null,null,null,null,null,null,null,null,null,null,null,null,null,null,null,null,null,null,null,null,null,null,null,null,null,null,null,null,0,null,null,null,null,null,null,null,null,null,null,null,null,""]
[null,null,null,null,null,null,null,101,null,null,null,null,null,null,null,null,0,null,null,null,null,null,null,null,null,null,null,null,null,null,null,null,null,null,null,null,null,null,null,null,null,null,null,null,null,null,null,null,null,0,null,null,null,null,null,null,null,null,null,null,null,null,""]
[null,{"$f":"+GİRİŞ!A32","v":31},{"$f":"+GİRİŞ!B32","v":"ALİ VELİ"},{"$f":"+GİRİŞ!C32","v":"FELSEFE"},"İnönü Ortaokulu",null,null,101,null,null,null,null,null,null,null,null,0,null,null,null,null,null,null,null,null,null,null,null,null,null,null,null,null,null,null,null,null,null,null,null,null,null,null,null,null,null,null,null,null,0,{"$f":"SUM(AX157:AX161)","v":0},null,null,null,null,null,null,null,null,null,null,null,""]
[null,null,null,null,null,null,null,101,null,null,null,null,null,null,null,null,0,null,null,null,null,null,null,null,null,null,null,null,null,null,null,null,null,null,null,null,null,null,null,null,null,null,null,null,null,null,null,null,null,0,null,null,null,null,null,null,null,null,null,null,null,null,""]
[null,null,null,null,null,null,null,101,null,null,null,null,null,null,null,null,0,null,null,null,null,null,null,null,null,null,null,null,null,null,null,null,null,null,null,null,null,null,null,null,null,null,null,null,null,null,null,null,null,0,null,null,null,null,null,null,null,null,null,null,null,null,""]
[null,null,null,null,null,null,null,101,null,null,null,null,null,null,null,null,0,null,null,null,null,null,null,null,null,null,null,null,null,null,null,null,null,null,null,null,null,null,null,null,null,null,null,null,null,null,null,null,null,0,null,null,null,null,null,null,null,null,null,null,null,null,""]
[null,null,null,null,null,null,null,101,null,null,null,null,null,null,null,null,0,null,null,null,null,null,null,null,null,null,null,null,null,null,null,null,null,null,null,null,null,null,null,null,null,null,null,null,null,null,null,null,null,0,null,null,null,null,null,null,null,null,null,null,null,null,""]
[null,{"$f":"+GİRİŞ!A33","v":32},{"$f":"+GİRİŞ!B33","v":"ALİ VELİ"},{"$f":"+GİRİŞ!C33","v":"FELSEFE"},"İnönü Ortaokulu",null,null,101,null,null,null,null,null,null,null,null,0,null,null,null,null,null,null,null,null,null,null,null,null,null,null,null,null,null,null,null,null,null,null,null,null,null,null,null,null,null,null,null,null,0,{"$f":"SUM(AX162:AX166)","v":0},null,null,null,null,null,null,null,null,null,null,null,""]
[null,null,null,null,null,null,null,101,null,null,null,null,null,null,null,null,0,null,null,null,null,null,null,null,null,null,null,null,null,null,null,null,null,null,null,null,null,null,null,null,null,null,null,null,null,null,null,null,null,0,null,null,null,null,null,null,null,null,null,null,null,null,""]
[null,null,null,null,null,null,null,101,null,null,null,null,null,null,null,null,0,null,null,null,null,null,null,null,null,null,null,null,null,null,null,null,null,null,null,null,null,null,null,null,null,null,null,null,null,null,null,null,null,0,null,null,null,null,null,null,null,null,null,null,null,null,""]
[null,null,null,null,null,null,null,101,null,null,null,null,null,null,null,null,0,null,null,null,null,null,null,null,null,null,null,null,null,null,null,null,null,null,null,null,null,null,null,null,null,null,null,null,null,null,null,null,null,0,null,null,null,null,null,null,null,null,null,null,null,null,""]
[null,null,null,null,null,null,null,101,null,null,null,null,null,null,null,null,0,null,null,null,null,null,null,null,null,null,null,null,null,null,null,null,null,null,null,null,null,null,null,null,null,null,null,null,null,null,null,null,null,0,null,null,null,null,null,null,null,null,null,null,null,null,""]
[null,{"$f":"+GİRİŞ!A34","v":33},{"$f":"+GİRİŞ!B34","v":"ALİ VELİ"},{"$f":"+GİRİŞ!C34","v":"FELSEFE"},"İnönü Ortaokulu",null,null,101,null,null,null,null,null,null,null,null,0,null,null,null,null,null,null,null,null,null,null,null,null,null,null,null,null,null,null,null,null,null,null,null,null,null,null,null,null,null,null,null,null,0,{"$f":"SUM(AX167:AX171)","v":0},null,null,null,null,null,null,null,null,null,null,null,""]
[null,null,null,null,null,null,null,101,null,null,null,null,null,null,null,null,0,null,null,null,null,null,null,null,null,null,null,null,null,null,null,null,null,null,null,null,null,null,null,null,null,null,null,null,null,null,null,null,null,0,null,null,null,null,null,null,null,null,null,null,null,null,""]
[null,null,null,null,null,null,null,101,null,null,null,null,null,null,null,null,0,null,null,null,null,null,null,null,null,null,null,null,null,null,null,null,null,null,null,null,null,null,null,null,null,null,null,null,null,null,null,null,null,0,null,null,null,null,null,null,null,null,null,null,null,null,""]
[null,null,null,null,null,null,null,101,null,null,null,null,null,null,null,null,0,null,null,null,null,null,null,null,null,null,null,null,null,null,null,null,null,null,null,null,null,null,null,null,null,null,null,null,null,null,null,null,null,0,null,null,null,null,null,null,null,null,null,null,null,null,""]
[null,null,null,null,null,null,null,101,null,null,null,null,null,null,null,null,0,null,null,null,null,null,null,null,null,null,null,null,null,null,null,null,null,null,null,null,null,null,null,null,null,null,null,null,null,null,null,null,null,0,null,null,null,null,null,null,null,null,null,null,null,null,""]
[null,{"$f":"+GİRİŞ!A35","v":34},{"$f":"+GİRİŞ!B35","v":"ALİ VELİ"},{"$f":"+GİRİŞ!C35","v":"FELSEFE"},"İnönü Ortaokulu",null,null,101,null,null,null,null,null,null,null,null,0,null,null,null,null,null,null,null,null,null,null,null,null,null,null,null,null,null,null,null,null,null,null,null,null,null,null,null,null,null,null,null,null,0,{"$f":"SUM(AX172:AX176)","v":0},null,null,null,null,null,null,null,null,null,null,null,""]
[null,null,null,null,null,null,null,101,null,null,null,null,null,null,null,null,0,null,null,null,null,null,null,null,null,null,null,null,null,null,null,null,null,null,null,null,null,null,null,null,null,null,null,null,null,null,null,null,null,0,null,null,null,null,null,null,null,null,null,null,null,null,""]
[null,null,null,null,null,null,null,101,null,null,null,null,null,null,null,null,0,null,null,null,null,null,null,null,null,null,null,null,null,null,null,null,null,null,null,null,null,null,null,null,null,null,null,null,null,null,null,null,null,0,null,null,null,null,null,null,null,null,null,null,null,null,""]
[null,null,null,null,null,null,null,101,null,null,null,null,null,null,null,null,0,null,null,null,null,null,null,null,null,null,null,null,null,null,null,null,null,null,null,null,null,null,null,null,null,null,null,null,null,null,null,null,null,0,null,null,null,null,null,null,null,null,null,null,null,null,""]
[null,null,null,null,null,null,null,101,null,null,null,null,null,null,null,null,0,null,null,null,null,null,null,null,null,null,null,null,null,null,null,null,null,null,null,null,null,null,null,null,null,null,null,null,null,null,null,null,null,0,null,null,null,null,null,null,null,null,null,null,null,null,""]
[null,{"$f":"+GİRİŞ!A36","v":35},{"$f":"+GİRİŞ!B36","v":"ALİ VELİ"},{"$f":"+GİRİŞ!C36","v":"FELSEFE"},"İnönü Ortaokulu",null,null,101,null,null,null,null,null,null,null,null,0,null,null,null,null,null,null,null,null,null,null,null,null,null,null,null,null,null,null,null,null,null,null,null,null,null,null,null,null,null,null,null,null,0,{"$f":"SUM(AX177:AX181)","v":0},null,null,null,null,null,null,null,null,null,null,null,""]
[null,null,null,null,null,null,null,101,null,null,null,null,null,null,null,null,0,null,null,null,null,null,null,null,null,null,null,null,null,null,null,null,null,null,null,null,null,null,null,null,null,null,null,null,null,null,null,null,null,0,null,null,null,null,null,null,null,null,null,null,null,null,""]
[null,null,null,null,null,null,null,101,null,null,null,null,null,null,null,null,0,null,null,null,null,null,null,null,null,null,null,null,null,null,null,null,null,null,null,null,null,null,null,null,null,null,null,null,null,null,null,null,null,0,null,null,null,null,null,null,null,null,null,null,null,null,""]
[null,null,null,null,null,null,null,101,null,null,null,null,null,null,null,null,0,null,null,null,null,null,null,null,null,null,null,null,null,null,null,null,null,null,null,null,null,null,null,null,null,null,null,null,null,null,null,null,null,0,null,null,null,null,null,null,null,null,null,null,null,null,""]
[null,null,null,null,null,null,null,101,null,null,null,null,null,null,null,null,0,null,null,null,null,null,null,null,null,null,null,null,null,null,null,null,null,null,null,null,null,null,null,null,null,null,null,null,null,null,null,null,null,0,null,null,null,null,null,null,null,null,null,null,null,null,""]
[null,{"$f":"+GİRİŞ!A37","v":36},{"$f":"+GİRİŞ!B37","v":"ALİ VELİ"},{"$f":"+GİRİŞ!C37","v":"FELSEFE"},"İnönü Ortaokulu",null,null,101,null,null,null,null,null,null,null,null,0,null,null,null,null,null,null,null,null,null,null,null,null,null,null,null,null,null,null,null,null,null,null,null,null,null,null,null,null,null,null,null,null,0,{"$f":"SUM(AX182:AX186)","v":0},null,null,null,null,null,null,null,null,null,null,null,""]
[null,null,null,null,null,null,null,101,null,null,null,null,null,null,null,null,0,null,null,null,null,null,null,null,null,null,null,null,null,null,null,null,null,null,null,null,null,null,null,null,null,null,null,null,null,null,null,null,null,0,null,null,null,null,null,null,null,null,null,null,null,null,""]
[null,null,null,null,null,null,null,101,null,null,null,null,null,null,null,null,0,null,null,null,null,null,null,null,null,null,null,null,null,null,null,null,null,null,null,null,null,null,null,null,null,null,null,null,null,null,null,null,null,0,null,null,null,null,null,null,null,null,null,null,null,null,""]
[null,null,null,null,null,null,null,101,null,null,null,null,null,null,null,null,0,null,null,null,null,null,null,null,null,null,null,null,null,null,null,null,null,null,null,null,null,null,null,null,null,null,null,null,null,null,null,null,null,0,null,null,null,null,null,null,null,null,null,null,null,null,""]
[null,null,null,null,null,null,null,101,null,null,null,null,null,null,null,null,0,null,null,null,null,null,null,null,null,null,null,null,null,null,null,null,null,null,null,null,null,null,null,null,null,null,null,null,null,null,null,null,null,0,null,null,null,null,null,null,null,null,null,null,null,null,""]
[null,{"$f":"+GİRİŞ!A38","v":37},{"$f":"+GİRİŞ!B38","v":"ALİ VELİ"},{"$f":"+GİRİŞ!C38","v":"FELSEFE"},"İnönü Ortaokulu",null,null,101,null,null,null,null,null,null,null,null,0,null,null,null,null,null,null,null,null,null,null,null,null,null,null,null,null,null,null,null,null,null,null,null,null,null,null,null,null,null,null,null,null,0,{"$f":"SUM(AX187:AX191)","v":0},null,null,null,null,null,null,null,null,null,null,null,""]
[null,null,null,null,null,null,null,101,null,null,null,null,null,null,null,null,0,null,null,null,null,null,null,null,null,null,null,null,null,null,null,null,null,null,null,null,null,null,null,null,null,null,null,null,null,null,null,null,null,0,null,null,null,null,null,null,null,null,null,null,null,null,""]
[null,null,null,null,null,null,null,101,null,null,null,null,null,null,null,null,0,null,null,null,null,null,null,null,null,null,null,null,null,null,null,null,null,null,null,null,null,null,null,null,null,null,null,null,null,null,null,null,null,0,null,null,null,null,null,null,null,null,null,null,null,null,""]
[null,null,null,null,null,null,null,101,null,null,null,null,null,null,null,null,0,null,null,null,null,null,null,null,null,null,null,null,null,null,null,null,null,null,null,null,null,null,null,null,null,null,null,null,null,null,null,null,null,0,null,null,null,null,null,null,null,null,null,null,null,null,""]
[null,null,null,null,null,null,null,101,null,null,null,null,null,null,null,null,0,null,null,null,null,null,null,null,null,null,null,null,null,null,null,null,null,null,null,null,null,null,null,null,null,null,null,null,null,null,null,null,null,0,null,null,null,null,null,null,null,null,null,null,null,null,""]
[null,{"$f":"+GİRİŞ!A39","v":38},{"$f":"+GİRİŞ!B39","v":"ALİ VELİ"},{"$f":"+GİRİŞ!C39","v":"FELSEFE"},"İnönü Ortaokulu",null,null,101,null,null,null,null,null,null,null,null,0,null,null,null,null,null,null,null,null,null,null,null,null,null,null,null,null,null,null,null,null,null,null,null,null,null,null,null,null,null,null,null,null,0,{"$f":"SUM(AX192:AX196)","v":0},null,null,null,null,null,null,null,null,null,null,null,""]
[null,null,null,null,null,null,null,101,null,null,null,null,null,null,null,null,0,null,null,null,null,null,null,null,null,null,null,null,null,null,null,null,null,null,null,null,null,null,null,null,null,null,null,null,null,null,null,null,null,0,null,null,null,null,null,null,null,null,null,null,null,null,""]
[null,null,null,null,null,null,null,101,null,null,null,null,null,null,null,null,0,null,null,null,null,null,null,null,null,null,null,null,null,null,null,null,null,null,null,null,null,null,null,null,null,null,null,null,null,null,null,null,null,0,null,null,null,null,null,null,null,null,null,null,null,null,""]
[null,null,null,null,null,null,null,101,null,null,null,null,null,null,null,null,0,null,null,null,null,null,null,null,null,null,null,null,null,null,null,null,null,null,null,null,null,null,null,null,null,null,null,null,null,null,null,null,null,0,null,null,null,null,null,null,null,null,null,null,null,null,""]
[null,null,null,null,null,null,null,101,null,null,null,null,null,null,null,null,0,null,null,null,null,null,null,null,null,null,null,null,null,null,null,null,null,null,null,null,null,null,null,null,null,null,null,null,null,null,null,null,null,0,null,null,null,null,null,null,null,null,null,null,null,null,""]
[null,{"$f":"+GİRİŞ!A40","v":39},{"$f":"+GİRİŞ!B40","v":"ALİ VELİ"},{"$f":"+GİRİŞ!C40","v":"FELSEFE"},"İnönü Ortaokulu",null,null,101,null,null,null,null,null,null,null,null,0,null,null,null,null,null,null,null,null,null,null,null,null,null,null,null,null,null,null,null,null,null,null,null,null,null,null,null,null,null,null,null,null,0,{"$f":"SUM(AX197:AX201)","v":0},null,null,null,null,null,null,null,null,null,null,null,""]
[null,null,null,null,null,null,null,101,null,null,null,null,null,null,null,null,0,null,null,null,null,null,null,null,null,null,null,null,null,null,null,null,null,null,null,null,null,null,null,null,null,null,null,null,null,null,null,null,null,0,null,null,null,null,null,null,null,null,null,null,null,null,""]
[null,null,null,null,null,null,null,101,null,null,null,null,null,null,null,null,0,null,null,null,null,null,null,null,null,null,null,null,null,null,null,null,null,null,null,null,null,null,null,null,null,null,null,null,null,null,null,null,null,0,null,null,null,null,null,null,null,null,null,null,null,null,""]
[null,null,null,null,null,null,null,101,null,null,null,null,null,null,null,null,{"$f":"SUM(J200:P200)","v":0},null,null,null,null,null,null,null,null,null,null,null,null,null,null,null,null,null,null,null,null,null,null,null,null,null,null,null,null,null,null,null,null,{"$f":"SUM(R200:AV200)","v":0},null,null,null,null,null,null,null,null,null,null,null,null,{"$f":"IF(AX200>0,\"Harun\",\"\")","v":""}]
[null,null,null,null,null,null,null,101,null,null,null,null,null,null,null,null,0,null,null,null,null,null,null,null,null,null,null,null,null,null,null,null,null,null,null,null,null,null,null,null,null,null,null,null,null,null,null,null,null,0,null,null,null,null,null,null,null,null,null,null,null,null,""]
[null,{"$f":"+GİRİŞ!A41","v":40},{"$f":"+GİRİŞ!B41","v":"ALİ VELİ"},{"$f":"+GİRİŞ!C41","v":"FELSEFE"},"İnönü Ortaokulu",null,null,101,null,null,null,null,null,null,null,null,0,null,null,null,null,null,null,null,null,null,null,null,null,null,null,null,null,null,null,null,null,null,null,null,null,null,null,null,null,null,null,null,null,0,{"$f":"SUM(AX202:AX206)","v":0},null,null,null,null,null,null,null,null,null,null,null,""]
[null,null,null,null,null,null,null,101,null,null,null,null,null,null,null,null,0,null,null,null,null,null,null,null,null,null,null,null,null,null,null,null,null,null,null,null,null,null,null,null,null,null,null,null,null,null,null,null,null,0,null,null,null,null,null,null,null,null,null,null,null,null,""]
[null,null,null,null,null,null,null,101,null,null,null,null,null,null,null,null,0,null,null,null,null,null,null,null,null,null,null,null,null,null,null,null,null,null,null,null,null,null,null,null,null,null,null,null,null,null,null,null,null,0,null,null,null,null,null,null,null,null,null,null,null,null,""]
[null,null,null,null,null,null,null,101,null,null,null,null,null,null,null,null,0,null,null,null,null,null,null,null,null,null,null,null,null,null,null,null,null,null,null,null,null,null,null,null,null,null,null,null,null,null,null,null,null,0,null,null,null,null,null,null,null,null,null,null,null,null,""]
[null,null,null,null,null,null,null,101,null,null,null,null,null,null,null,null,0,null,null,null,null,null,null,null,null,null,null,null,null,null,null,null,null,null,null,null,null,null,null,null,null,null,null,null,null,null,null,null,null,0,null,null,null,null,null,null,null,null,null,null,null,null,""]
[null,{"$f":"+GİRİŞ!A42","v":41},{"$f":"+GİRİŞ!B42","v":"ALİ VELİ"},{"$f":"+GİRİŞ!C42","v":"FELSEFE"},"İnönü Ortaokulu",null,null,101,null,null,null,null,null,null,null,null,0,null,null,null,null,null,null,null,null,null,null,null,null,null,null,null,null,null,null,null,null,null,null,null,null,null,null,null,null,null,null,null,null,0,{"$f":"SUM(AX207:AX211)","v":0},null,null,null,null,null,null,null,null,null,null,null,""]
[null,null,null,null,null,null,null,101,null,null,null,null,null,null,null,null,0,null,null,null,null,null,null,null,null,null,null,null,null,null,null,null,null,null,null,null,null,null,null,null,null,null,null,null,null,null,null,null,null,0,null,null,null,null,null,null,null,null,null,null,null,null,""]
[null,null,null,null,null,null,null,101,null,null,null,null,null,null,null,null,0,null,null,null,null,null,null,null,null,null,null,null,null,null,null,null,null,null,null,null,null,null,null,null,null,null,null,null,null,null,null,null,null,0,null,null,null,null,null,null,null,null,null,null,null,null,""]
[null,null,null,null,null,null,null,101,null,null,null,null,null,null,null,null,0,null,null,null,null,null,null,null,null,null,null,null,null,null,null,null,null,null,null,null,null,null,null,null,null,null,null,null,null,null,null,null,null,0,null,null,null,null,null,null,null,null,null,null,null,null,""]
[null,null,null,null,null,null,null,101,null,null,null,null,null,null,null,null,0,null,null,null,null,null,null,null,null,null,null,null,null,null,null,null,null,null,null,null,null,null,null,null,null,null,null,null,null,null,null,null,null,0,null,null,null,null,null,null,null,null,null,null,null,null,""]
[null,{"$f":"+GİRİŞ!A43","v":42},{"$f":"+GİRİŞ!B43","v":"ALİ VELİ"},{"$f":"+GİRİŞ!C43","v":"FELSEFE"},"İnönü Ortaokulu",null,null,101,null,null,null,null,null,null,null,null,0,null,null,null,null,null,null,null,null,null,null,null,null,null,null,null,null,null,null,null,null,null,null,null,null,null,null,null,null,null,null,null,null,0,{"$f":"SUM(AX212:AX216)","v":0},null,null,null,null,null,null,null,null,null,null,null,""]
[null,null,null,null,null,null,null,101,null,null,null,null,null,null,null,null,0,null,null,null,null,null,null,null,null,null,null,null,null,null,null,null,null,null,null,null,null,null,null,null,null,null,null,null,null,null,null,null,null,0,null,null,null,null,null,null,null,null,null,null,null,null,""]
[null,null,null,null,null,null,null,101,null,null,null,null,null,null,null,null,0,null,null,null,null,null,null,null,null,null,null,null,null,null,null,null,null,null,null,null,null,null,null,null,null,null,null,null,null,null,null,null,null,0,null,null,null,null,null,null,null,null,null,null,null,null,""]
[null,null,null,null,null,null,null,101,null,null,null,null,null,null,null,null,0,null,null,null,null,null,null,null,null,null,null,null,null,null,null,null,null,null,null,null,null,null,null,null,null,null,null,null,null,null,null,null,null,0,null,null,null,null,null,null,null,null,null,null,null,null,""]
[null,null,null,null,null,null,null,101,null,null,null,null,null,null,null,null,0,null,null,null,null,null,null,null,null,null,null,null,null,null,null,null,null,null,null,null,null,null,null,null,null,null,null,null,null,null,null,null,null,0,null,null,null,null,null,null,null,null,null,null,null,null,""]
[null,{"$f":"+GİRİŞ!A44","v":43},{"$f":"+GİRİŞ!B44","v":"ALİ VELİ"},{"$f":"+GİRİŞ!C44","v":"FELSEFE"},"İnönü Ortaokulu",null,null,101,null,null,null,null,null,null,null,null,0,null,null,null,null,null,null,null,null,null,null,null,null,null,null,null,null,null,null,null,null,null,null,null,null,null,null,null,null,null,null,null,null,0,{"$f":"SUM(AX217:AX221)","v":0},null,null,null,null,null,null,null,null,null,null,null,""]
[null,null,null,null,null,null,null,101,null,null,null,null,null,null,null,null,0,null,null,null,null,null,null,null,null,null,null,null,null,null,null,null,null,null,null,null,null,null,null,null,null,null,null,null,null,null,null,null,null,0,null,null,null,null,null,null,null,null,null,null,null,null,""]
[null,null,null,null,null,null,null,101,null,null,null,null,null,null,null,null,0,null,null,null,null,null,null,null,null,null,null,null,null,null,null,null,null,null,null,null,null,null,null,null,null,null,null,null,null,null,null,null,null,0,null,null,null,null,null,null,null,null,null,null,null,null,""]
[null,null,null,null,null,null,null,101,null,null,null,null,null,null,null,null,0,null,null,null,null,null,null,null,null,null,null,null,null,null,null,null,null,null,null,null,null,null,null,null,null,null,null,null,null,null,null,null,null,0,null,null,null,null,null,null,null,null,null,null,null,null,""]
[null,null,null,null,null,null,null,101,null,null,null,null,null,null,null,null,0,null,null,null,null,null,null,null,null,null,null,null,null,null,null,null,null,null,null,null,null,null,null,null,null,null,null,null,null,null,null,null,null,0,null,null,null,null,null,null,null,null,null,null,null,null,""]
[null,{"$f":"+GİRİŞ!A45","v":44},{"$f":"+GİRİŞ!B45","v":"ALİ VELİ"},{"$f":"+GİRİŞ!C45","v":"FELSEFE"},"İnönü Ortaokulu",null,null,101,null,null,null,null,null,null,null,null,0,null,null,null,null,null,null,null,null,null,null,null,null,null,null,null,null,null,null,null,null,null,null,null,null,null,null,null,null,null,null,null,null,0,{"$f":"SUM(AX222:AX226)","v":0},null,null,null,null,null,null,null,null,null,null,null,""]
[null,null,null,null,null,null,null,101,null,null,null,null,null,null,null,null,0,null,null,null,null,null,null,null,null,null,null,null,null,null,null,null,null,null,null,null,null,null,null,null,null,null,null,null,null,null,null,null,null,0,null,null,null,null,null,null,null,null,null,null,null,null,""]
[null,null,null,null,null,null,null,101,null,null,null,null,null,null,null,null,0,null,null,null,null,null,null,null,null,null,null,null,null,null,null,null,null,null,null,null,null,null,null,null,null,null,null,null,null,null,null,null,null,0,null,null,null,null,null,null,null,null,null,null,null,null,""]
[null,null,null,null,null,null,null,101,null,null,null,null,null,null,null,null,0,null,null,null,null,null,null,null,null,null,null,null,null,null,null,null,null,null,null,null,null,null,null,null,null,null,null,null,null,null,null,null,null,0,null,null,null,null,null,null,null,null,null,null,null,null,""]
[null,null,null,null,null,null,null,101,null,null,null,null,null,null,null,null,0,null,null,null,null,null,null,null,null,null,null,null,null,null,null,null,null,null,null,null,null,null,null,null,null,null,null,null,null,null,null,null,null,0,null,null,null,null,null,null,null,null,null,null,null,null,""]
[null,{"$f":"+GİRİŞ!A46","v":45},{"$f":"+GİRİŞ!B46","v":"ALİ VELİ"},{"$f":"+GİRİŞ!C46","v":"FELSEFE"},"İnönü Ortaokulu",null,null,101,null,null,null,null,null,null,null,null,0,null,null,null,null,null,null,null,null,null,null,null,null,null,null,null,null,null,null,null,null,null,null,null,null,null,null,null,null,null,null,null,null,0,{"$f":"SUM(AX227:AX231)","v":0},null,null,null,null,null,null,null,null,null,null,null,""]
[null,null,null,null,null,null,null,101,null,null,null,null,null,null,null,null,0,null,null,null,null,null,null,null,null,null,null,null,null,null,null,null,null,null,null,null,null,null,null,null,null,null,null,null,null,null,null,null,null,0,null,null,null,null,null,null,null,null,null,null,null,null,""]
[null,null,null,null,null,null,null,101,null,null,null,null,null,null,null,null,0,null,null,null,null,null,null,null,null,null,null,null,null,null,null,null,null,null,null,null,null,null,null,null,null,null,null,null,null,null,null,null,null,0,null,null,null,null,null,null,null,null,null,null,null,null,""]
[null,null,null,null,null,null,null,101,null,null,null,null,null,null,null,null,0,null,null,null,null,null,null,null,null,null,null,null,null,null,null,null,null,null,null,null,null,null,null,null,null,null,null,null,null,null,null,null,null,0,null,null,null,null,null,null,null,null,null,null,null,null,""]
[null,null,null,null,null,null,null,101,null,null,null,null,null,null,null,null,0,null,null,null,null,null,null,null,null,null,null,null,null,null,null,null,null,null,null,null,null,null,null,null,null,null,null,null,null,null,null,null,null,0,null,null,null,null,null,null,null,null,null,null,null,null,""]
[null,{"$f":"+GİRİŞ!A47","v":46},{"$f":"+GİRİŞ!B47","v":"ALİ VELİ"},{"$f":"+GİRİŞ!C47","v":"FELSEFE"},"İnönü Ortaokulu",null,null,101,null,null,null,null,null,null,null,null,0,null,null,null,null,null,null,null,null,null,null,null,null,null,null,null,null,null,null,null,null,null,null,null,null,null,null,null,null,null,null,null,null,0,{"$f":"SUM(AX232:AX236)","v":0},null,null,null,null,null,null,null,null,null,null,null,""]
[null,null,null,null,null,null,null,101,null,null,null,null,null,null,null,null,0,null,null,null,null,null,null,null,null,null,null,null,null,null,null,null,null,null,null,null,null,null,null,null,null,null,null,null,null,null,null,null,null,0,null,null,null,null,null,null,null,null,null,null,null,null,""]
[null,null,null,null,null,null,null,101,null,null,null,null,null,null,null,null,0,null,null,null,null,null,null,null,null,null,null,null,null,null,null,null,null,null,null,null,null,null,null,null,null,null,null,null,null,null,null,null,null,0,null,null,null,null,null,null,null,null,null,null,null,null,""]
[null,null,null,null,null,null,null,101,null,null,null,null,null,null,null,null,0,null,null,null,null,null,null,null,null,null,null,null,null,null,null,null,null,null,null,null,null,null,null,null,null,null,null,null,null,null,null,null,null,0,null,null,null,null,null,null,null,null,null,null,null,null,""]
[null,null,null,null,null,null,null,101,null,null,null,null,null,null,null,null,0,null,null,null,null,null,null,null,null,null,null,null,null,null,null,null,null,null,null,null,null,null,null,null,null,null,null,null,null,null,null,null,null,0,null,null,null,null,null,null,null,null,null,null,null,null,""]
[null,{"$f":"+GİRİŞ!A48","v":47},{"$f":"+GİRİŞ!B48","v":"ALİ VELİ"},{"$f":"+GİRİŞ!C48","v":"FELSEFE"},"İnönü Ortaokulu",null,null,101,null,null,null,null,null,null,null,null,0,null,null,null,null,null,null,null,null,null,null,null,null,null,null,null,null,null,null,null,null,null,null,null,null,null,null,null,null,null,null,null,null,0,{"$f":"SUM(AX237:AX241)","v":0},null,null,null,null,null,null,null,null,null,null,null,""]
[null,null,null,null,null,null,null,101,null,null,null,null,null,null,null,null,0,null,null,null,null,null,null,null,null,null,null,null,null,null,null,null,null,null,null,null,null,null,null,null,null,null,null,null,null,null,null,null,null,0,null,null,null,null,null,null,null,null,null,null,null,null,""]
[null,null,null,null,null,null,null,101,null,null,null,null,null,null,null,null,0,null,null,null,null,null,null,null,null,null,null,null,null,null,null,null,null,null,null,null,null,null,null,null,null,null,null,null,null,null,null,null,null,0,null,null,null,null,null,null,null,null,null,null,null,null,""]
[null,null,null,null,null,null,null,101,null,null,null,null,null,null,null,null,0,null,null,null,null,null,null,null,null,null,null,null,null,null,null,null,null,null,null,null,null,null,null,null,null,null,null,null,null,null,null,null,null,0,null,null,null,null,null,null,null,null,null,null,null,null,""]
[null,null,null,null,null,null,null,101,null,null,null,null,null,null,null,null,0,null,null,null,null,null,null,null,null,null,null,null,null,null,null,null,null,null,null,null,null,null,null,null,null,null,null,null,null,null,null,null,null,0,null,null,null,null,null,null,null,null,null,null,null,null,""]
[null,{"$f":"+GİRİŞ!A49","v":48},{"$f":"+GİRİŞ!B49","v":"ALİ VELİ"},{"$f":"+GİRİŞ!C49","v":"FELSEFE"},"İnönü Ortaokulu",null,null,101,null,null,null,null,null,null,null,null,0,null,null,null,null,null,null,null,null,null,null,null,null,null,null,null,null,null,null,null,null,null,null,null,null,null,null,null,null,null,null,null,null,0,{"$f":"SUM(AX242:AX246)","v":0},null,null,null,null,null,null,null,null,null,null,null,""]
[null,null,null,null,null,null,null,101,null,null,null,null,null,null,null,null,0,null,null,null,null,null,null,null,null,null,null,null,null,null,null,null,null,null,null,null,null,null,null,null,null,null,null,null,null,null,null,null,null,0,null,null,null,null,null,null,null,null,null,null,null,null,""]
[null,null,null,null,null,null,null,101,null,null,null,null,null,null,null,null,0,null,null,null,null,null,null,null,null,null,null,null,null,null,null,null,null,null,null,null,null,null,null,null,null,null,null,null,null,null,null,null,null,0,null,null,null,null,null,null,null,null,null,null,null,null,""]
[null,null,null,null,null,null,null,101,null,null,null,null,null,null,null,null,0,null,null,null,null,null,null,null,null,null,null,null,null,null,null,null,null,null,null,null,null,null,null,null,null,null,null,null,null,null,null,null,null,0,null,null,null,null,null,null,null,null,null,null,null,null,""]
[null,null,null,null,null,null,null,101,null,null,null,null,null,null,null,null,0,null,null,null,null,null,null,null,null,null,null,null,null,null,null,null,null,null,null,null,null,null,null,null,null,null,null,null,null,null,null,null,null,0,null,null,null,null,null,null,null,null,null,null,null,null,""]
[null,{"$f":"+GİRİŞ!A50","v":49},{"$f":"+GİRİŞ!B50","v":"ALİ VELİ"},{"$f":"+GİRİŞ!C50","v":"FELSEFE"},"İnönü Ortaokulu",null,null,101,null,null,null,null,null,null,null,null,0,null,null,null,null,null,null,null,null,null,null,null,null,null,null,null,null,null,null,null,null,null,null,null,null,null,null,null,null,null,null,null,null,0,{"$f":"SUM(AX247:AX251)","v":0},null,null,null,null,null,null,null,null,null,null,null,""]
[null,null,null,null,null,null,null,101,null,null,null,null,null,null,null,null,0,null,null,null,null,null,null,null,null,null,null,null,null,null,null,null,null,null,null,null,null,null,null,null,null,null,null,null,null,null,null,null,null,0,null,null,null,null,null,null,null,null,null,null,null,null,""]
[null,null,null,null,null,null,null,101,null,null,null,null,null,null,null,null,0,null,null,null,null,null,null,null,null,null,null,null,null,null,null,null,null,null,null,null,null,null,null,null,null,null,null,null,null,null,null,null,null,0,null,null,null,null,null,null,null,null,null,null,null,null,""]
[null,null,null,null,null,null,null,101,null,null,null,null,null,null,null,null,0,null,null,null,null,null,null,null,null,null,null,null,null,null,null,null,null,null,null,null,null,null,null,null,null,null,null,null,null,null,null,null,null,0,null,null,null,null,null,null,null,null,null,null,null,null,""]
[null,null,null,null,null,null,null,101,null,null,null,null,null,null,null,null,0,null,null,null,null,null,null,null,null,null,null,null,null,null,null,null,null,null,null,null,null,null,null,null,null,null,null,null,null,null,null,null,null,0,null,null,null,null,null,null,null,null,null,null,null,null,""]
[null,{"$f":"+GİRİŞ!A51","v":50},{"$f":"+GİRİŞ!B51","v":"ALİ VELİ"},{"$f":"+GİRİŞ!C51","v":"FELSEFE"},"İnönü Ortaokulu",null,null,101,null,null,null,null,null,null,null,null,0,null,null,null,null,null,null,null,null,null,null,null,null,null,null,null,null,null,null,null,null,null,null,null,null,null,null,null,null,null,null,null,null,0,{"$f":"SUM(AX252:AX256)","v":0},null,null,null,null,null,null,null,null,null,null,null,""]
[null,null,null,null,null,null,null,101,null,null,null,null,null,null,null,null,0,null,null,null,null,null,null,null,null,null,null,null,null,null,null,null,null,null,null,null,null,null,null,null,null,null,null,null,null,null,null,null,null,0,null,null,null,null,null,null,null,null,null,null,null,null,""]
[null,null,null,null,null,null,null,101,null,null,null,null,null,null,null,null,0,null,null,null,null,null,null,null,null,null,null,null,null,null,null,null,null,null,null,null,null,null,null,null,null,null,null,null,null,null,null,null,null,0,null,null,null,null,null,null,null,null,null,null,null,null,""]
[null,null,null,null,null,null,null,101,null,null,null,null,null,null,null,null,0,null,null,null,null,null,null,null,null,null,null,null,null,null,null,null,null,null,null,null,null,null,null,null,null,null,null,null,null,null,null,null,null,0,null,null,null,null,null,null,null,null,null,null,null,null,""]
[null,null,null,null,null,null,null,101,null,null,null,null,null,null,null,null,0,null,null,null,null,null,null,null,null,null,null,null,null,null,null,null,null,null,null,null,null,null,null,null,null,null,null,null,null,null,null,null,null,0,null,null,null,null,null,null,null,null,null,null,null,null,""]
[null,null,null,null,null,null,null,null,null,null,null,null,null,null,null,null,null,null,null,null,null,null,null,null,null,null,null,null,null,null,null,null,null,null,null,null,null,null,null,null,null,null,null,null,null,null,null,null,null,{"$f":"SUM(AX7:AX256)","v":0},{"$f":"SUM(AY7:AY256)","v":0},null,null,null,null,null,null,null,null,null,null,null,"Harun"]
[null,{"$f":"CONCATENATE(\"          \",PROPER($E$3),\"nde sözleşmeli olarak çalışan yukarıda bilgileri yazılı olan \",MAX(B7:B256),\" Sözleşmeli Öğretmen tarafından \",$AT$3,\" Yılı \",$AF$3,\" Ayında  \",$AX$257,\"  saat ek ders okutulmuştur.\")","v":"          Genç Aihlnde sözleşmeli olarak çalışan yukarıda bilgileri yazılı olan 50 Sözleşmeli Öğretmen tarafından 2022 Yılı OCAK Ayında  0  saat ek ders okutulmuştur."},null,null,null,null,null,null,null,null,null,null,null,null,null,null,null,null,null,null,null,null,null,null,null,null,null,null,null,null,null,null,null,null,null,null,null,null,null,null,null,null,null,null,null,null,null,null,null,null,null,null,null,null,null,null,null,null,null,null,null,null,"Harun"]
[null,null,null,"Açıklama:",null,null,null,null,null,null,null,null,null,null,null,null,null,null,null,null,null,null,null,null,null,null,null,null,null,null,null,null,null,null,null,null,null,null,null,null,null,null,null,null,null,null,null,null,null,null,null,null,null,null,null,null,null,null,null,null,null,null,"Harun"]
[null,null,null,null,null,null,null,null,null,null,null,null,null,null,null,null,null,null,null,null,null,null,null,null,null,null,null,null,null,null,null,null,null,null,null,null,null,null,null,null,null,null,null,null,null,null,null,null,null,null,null,null,null,null,null,null,null,null,null,null,null,null,"Harun"]
[null,null,null,null,null,null,null,null,null,null,null,null,null,null,null,null,null,null,null,null,null,null,null,null,null,null,null,null,null,null,null,null,null,null,null,null,null,null,null,null,null,null,null,null,null,null,null,null,null,null,null,null,null,null,null,null,null,null,null,null,null,null,"Harun"]
[null,null,null,null,null,null,null,null,null,null,null,null,null,null,null,null,null,null,null,null,null,null,null,null,null,null,null,null,null,null,null,null,null,null,null,null,null,null,null,null,null,null,null,null,null,null,null,null,null,null,null,null,null,null,null,null,null,null,null,null,null,null,"Harun"]
[null,null,null,null,null,null,null,null,null,null,null,null,null,null,null,null,null,null,null,null,null,null,null,null,null,null,null,null,null,null,null,null,null,null,null,null,null,null,null,null,null,null,null,null,null,null,null,null,null,null,null,null,null,null,null,null,null,null,null,null,null,null,"Harun"]
[null,null,null,null,null,null,null,null,null,null,null,null,null,null,null,null,null,null,null,null,null,null,null,null,null,null,null,null,null,null,null,null,null,null,null,{"$f":"+TODAY()","v":"2022-01-04"},null,null,null,null,null,null,null,null,null,null,null,null,null,null,null,null,null,null,null,null,null,null,null,null,null,null,"Harun"]
[null,"DÜZENLEYEN",null,null,null,null,null,null,null,null,null,null,null,null,null,null,null,null,null,null,null,null,null,null,null,null,null,null,null,null,null,null,null,null,null,"ONAYLAYAN",null,null,null,null,null,null,null,null,null,null,null,null,null,null,null,null,null,null,null,null,null,null,null,null,null,null,"Harun"]
[null,null,null,null,null,null,null,null,null,null,null,null,null,null,null,null,null,null,null,null,null,null,null,null,null,null,null,null,null,null,null,null,null,null,null,null,null,null,null,null,null,null,null,null,null,null,null,null,null,null,null,null,null,null,null,null,null,null,null,null,null,null,"Harun"]
[null,"Müdür Yardımcısı",null,null,null,null,null,null,null,null,null,null,null,null,null,null,null,null,null,null,null,null,null,null,null,null,null,null,null,null,null,null,null,null,null,null,null,null,null,null,null,null,null,null,null,null,null,null,null,null,null,null,null,null,null,null,null,null,null,null,null,null,"Harun"]
[null,null,null,null,null,null,null,null,null,null,null,null,null,null,null,null,null,null,null,null,null,null,null,null,null,null,null,null,null,null,null,null,null,null,null,"Okul Müdürü",null,null,null,null,null,null,null,null,null,null,null,null,null,null,null,null,null,null,null,null,null,null,null,null,null,null,"Harun"]
[null,null,null,null,null,null,null,null,null,null,null,null,null,null,null,null,null,null,null,null,null,null,null,null,null,null,null,null,null,null,null,null,null,null,null,null,null,null,null,null,null,null,null,null,null,null,null,null,null,null,null,null,null,null,null,null,null,null,null,null,null,null,"Harun"]

{"sheet":"Sayfa1","index":2,"n_rows":0,"n_cols":0,"rows_kept":0,"cut":false,"hidden":false,"merged":[]}